Workbook

Sheet List1
A1: D13
A2: Priimek
A3: Ime
A4: Naziv
A5: Naslov
A6: Datum
A7: KODA
A8: Ura
A9: BIO | D9: 1 | F9: 2 | H9: 3 | J9: 4 | L9: 5
A10: Parametri | B10: Status | D10: Meritev | E10: % | F10: GA1,2,3,4 | G10: % | H10: AP01-33 | I10: % | J10: BT1 | K10: % | L10: BT2 do BT4 | M10: %
A11: P15 | B11: K= | C11: od -12 do +8 | E11: =VLOOKUP(D11,Procenti!$M$2:$N$169,2,FALSE) ->  | G11: =VLOOKUP(F11,Procenti!$M$2:$N$169,2,FALSE) ->  | I11: =VLOOKUP(H11,Procenti!$M$2:$N$169,2,FALSE) ->  | K11: =VLOOKUP(J11,Procenti!$M$2:$N$169,2,FALSE) ->  | M11: =VLOOKUP(L11,Procenti!$M$2:$N$169,2,FALSE) -> 
A12: P1 | B12: D33=S... | E12: =VLOOKUP(D12,Procenti!$O$2:$P$169,2,FALSE) ->  | G12: =VLOOKUP(F12,Procenti!$O$2:$P$169,2,FALSE) ->  | I12: =VLOOKUP(H12,Procenti!$O$2:$P$169,2,FALSE) ->  | K12: =VLOOKUP(J12,Procenti!$O$2:$P$169,2,FALSE) ->  | M12: =VLOOKUP(L12,Procenti!$O$2:$P$169,2,FALSE) -> 
A13: P2 | B13: BK temperatura: | E13: =-VLOOKUP(D13,Procenti!$I$2:$J$169,2,FALSE) ->  | G13: =-VLOOKUP(F13,Procenti!$I$2:$J$169,2,FALSE) ->  | I13: =-VLOOKUP(H13,Procenti!$I$2:$J$169,2,FALSE) ->  | K13: =-VLOOKUP(J13,Procenti!$I$2:$J$169,2,FALSE) ->  | M13: =-VLOOKUP(L13,Procenti!$I$2:$J$169,2,FALSE) -> 
A14: P3 | B14: BK Zasvojenost: | E14: =-VLOOKUP(D14,Procenti!$K$2:$L$169,2,FALSE) ->  | G14: =-VLOOKUP(F14,Procenti!$K$2:$L$169,2,FALSE) ->  | I14: =-VLOOKUP(H14,Procenti!$K$2:$L$169,2,FALSE) ->  | K14: =-VLOOKUP(J14,Procenti!$K$2:$L$169,2,FALSE) ->  | M14: =-VLOOKUP(L14,Procenti!$K$2:$L$169,2,FALSE) -> 
A15: P4 | B15: BK nivo zdravja: | E15: =VLOOKUP(D15,Procenti!$E$1:$F$169,2,FALSE) -> 0 | G15: =VLOOKUP(F15,Procenti!$E$1:$F$169,2,FALSE) -> 0 | I15: =VLOOKUP(H15,Procenti!$E$1:$F$169,2,FALSE) -> 0 | K15: =VLOOKUP(J15,Procenti!$E$1:$F$169,2,FALSE) -> 0 | M15: =VLOOKUP(L15,Procenti!$E$1:$F$169,2,FALSE) -> 0
A16: P5 | B16: BK nivo kriminala: | E16: =-VLOOKUP(D16,Procenti!$G$1:$H$169,2,FALSE) -> 0 | G16: =-VLOOKUP(F16,Procenti!$G$1:$H$169,2,FALSE) -> 0 | I16: =-VLOOKUP(H16,Procenti!$G$1:$H$169,2,FALSE) -> 0 | K16: =-VLOOKUP(J16,Procenti!$G$1:$H$169,2,FALSE) -> 0 | M16: =-VLOOKUP(L16,Procenti!$G$1:$H$169,2,FALSE) -> 0
A18: Meritve v osnovnem merilnem polju. | D18: 1 | F18: 2 | H18: 3 | J18: 4 | L18: 5
A19: - - ali + + | B19: Št.: | C19: BIOenergije | D19: BK V. | E19: % | F19: BK V. | G19: % | H19: AP01-33 | I19: % | J19: BT1 | K19: % | L19: BT2 do BT4 | M19: %
A20: P12 | B20: 1 | C20: V | E20: =-VLOOKUP(D20,Procenti!$A$2:$B$169,2,FALSE) ->  | G20: =-VLOOKUP(F20,Procenti!$A$2:$B$169,2,FALSE) ->  | I20: =-VLOOKUP(H20,Procenti!$A$2:$B$169,2,FALSE) ->  | K20: =-VLOOKUP(J20,Procenti!$A$2:$B$169,2,FALSE) ->  | M20: =-VLOOKUP(L20,Procenti!$A$2:$B$169,2,FALSE) -> 
A21: P12 | B21: 2 | C21: gama | E21: =-VLOOKUP(D21,Procenti!$A$2:$B$169,2,FALSE) ->  | G21: =-VLOOKUP(F21,Procenti!$A$2:$B$169,2,FALSE) ->  | I21: =-VLOOKUP(H21,Procenti!$A$2:$B$169,2,FALSE) ->  | K21: =-VLOOKUP(J21,Procenti!$A$2:$B$169,2,FALSE) ->  | M21: =-VLOOKUP(L21,Procenti!$A$2:$B$169,2,FALSE) -> 
A22: P12 | B22: 3 | C22: H | E22: =-VLOOKUP(D22,Procenti!$A$2:$B$169,2,FALSE) ->  | G22: =-VLOOKUP(F22,Procenti!$A$2:$B$169,2,FALSE) ->  | I22: =-VLOOKUP(H22,Procenti!$A$2:$B$169,2,FALSE) ->  | K22: =-VLOOKUP(J22,Procenti!$A$2:$B$169,2,FALSE) ->  | M22: =-VLOOKUP(L22,Procenti!$A$2:$B$169,2,FALSE) -> 
A23: P12 | B23: 4 | C23: jota | E23: =-VLOOKUP(D23,Procenti!$A$2:$B$169,2,FALSE) ->  | G23: =-VLOOKUP(F23,Procenti!$A$2:$B$169,2,FALSE) ->  | I23: =-VLOOKUP(H23,Procenti!$A$2:$B$169,2,FALSE) ->  | K23: =-VLOOKUP(J23,Procenti!$A$2:$B$169,2,FALSE) ->  | M23: =-VLOOKUP(L23,Procenti!$A$2:$B$169,2,FALSE) -> 
A24: P16 | B24: 5 | C24: kapa | E24: =-VLOOKUP(D24,Procenti!$A$2:$B$169,2,FALSE) ->  | G24: =-VLOOKUP(F24,Procenti!$A$2:$B$169,2,FALSE) ->  | I24: =VLOOKUP(H24,Procenti!$A$2:$B$169,2,FALSE) ->  | K24: =VLOOKUP(J24,Procenti!$A$2:$B$169,2,FALSE) ->  | M24: =VLOOKUP(L24,Procenti!$A$2:$B$169,2,FALSE) -> 
A25: P16 | B25: 6 | C25: pi | E25: =-VLOOKUP(D25,Procenti!$A$2:$B$169,2,FALSE) ->  | G25: =-VLOOKUP(F25,Procenti!$A$2:$B$169,2,FALSE) ->  | I25: =VLOOKUP(H25,Procenti!$A$2:$B$169,2,FALSE) ->  | K25: =VLOOKUP(J25,Procenti!$A$2:$B$169,2,FALSE) ->  | M25: =VLOOKUP(L25,Procenti!$A$2:$B$169,2,FALSE) -> 
A26: P6 | B26: 7 | C26: B | E26: =VLOOKUP(D26,Procenti!$A$2:$B$169,2,FALSE) ->  | G26: =VLOOKUP(F26,Procenti!$A$2:$B$169,2,FALSE) ->  | I26: =VLOOKUP(H26,Procenti!$A$2:$B$169,2,FALSE) ->  | K26: =VLOOKUP(J26,Procenti!$A$2:$B$169,2,FALSE) ->  | M26: =VLOOKUP(L26,Procenti!$A$2:$B$169,2,FALSE) -> 
A27: P6 | B27: 8 | C27: O | E27: =VLOOKUP(D27,Procenti!$A$2:$B$169,2,FALSE) ->  | G27: =VLOOKUP(F27,Procenti!$A$2:$B$169,2,FALSE) ->  | I27: =VLOOKUP(H27,Procenti!$A$2:$B$169,2,FALSE) ->  | K27: =VLOOKUP(J27,Procenti!$A$2:$B$169,2,FALSE) ->  | M27: =VLOOKUP(L27,Procenti!$A$2:$B$169,2,FALSE) -> 
A28: P6 | B28: 9 | C28: I | E28: =VLOOKUP(D28,Procenti!$A$2:$B$169,2,FALSE) ->  | G28: =VLOOKUP(F28,Procenti!$A$2:$B$169,2,FALSE) ->  | I28: =VLOOKUP(H28,Procenti!$A$2:$B$169,2,FALSE) ->  | K28: =VLOOKUP(J28,Procenti!$A$2:$B$169,2,FALSE) ->  | M28: =VLOOKUP(L28,Procenti!$A$2:$B$169,2,FALSE) -> 
A29: P9 | B29: 10 | C29: alfa | E29: =VLOOKUP(D29,Procenti!$C$2:$D$169,2,FALSE) ->  | G29: =VLOOKUP(F29,Procenti!$C$2:$D$169,2,FALSE) ->  | I29: =VLOOKUP(H29,Procenti!$C$2:$D$169,2,FALSE) ->  | K29: =VLOOKUP(J29,Procenti!$C$2:$D$169,2,FALSE) ->  | M29: =VLOOKUP(L29,Procenti!$C$2:$D$169,2,FALSE) -> 
A30: P10 | B30: 11 | C30: beta | E30: =-VLOOKUP(D30,Procenti!$A$2:$B$169,2,FALSE) ->  | G30: =-VLOOKUP(F30,Procenti!$A$2:$B$169,2,FALSE) ->  | I30: =-VLOOKUP(H30,Procenti!$A$2:$B$169,2,FALSE) ->  | K30: =-VLOOKUP(J30,Procenti!$A$2:$B$169,2,FALSE) ->  | M30: =-VLOOKUP(L30,Procenti!$A$2:$B$169,2,FALSE) -> 
A31: P11 | B31: 12 | C31: P | E31: =VLOOKUP(D31,Procenti!$C$2:$D$169,2,FALSE) ->  | G31: =VLOOKUP(F31,Procenti!$C$2:$D$169,2,FALSE) ->  | I31: =VLOOKUP(H31,Procenti!$C$2:$D$169,2,FALSE) ->  | K31: =VLOOKUP(J31,Procenti!$C$2:$D$169,2,FALSE) ->  | M31: =VLOOKUP(L31,Procenti!$C$2:$D$169,2,FALSE) -> 
A32: P13 | B32: 13 | C32: C | E32: =-VLOOKUP(D32,Procenti!$A$2:$B$169,2,FALSE) ->  | G32: =-VLOOKUP(F32,Procenti!$A$2:$B$169,2,FALSE) ->  | I32: =-VLOOKUP(H32,Procenti!$A$2:$B$169,2,FALSE) ->  | K32: =-VLOOKUP(J32,Procenti!$A$2:$B$169,2,FALSE) ->  | M32: =-VLOOKUP(L32,Procenti!$A$2:$B$169,2,FALSE) -> 
A33: P13 | B33: 14 | C33: delta | E33: =-VLOOKUP(D33,Procenti!$A$2:$B$169,2,FALSE) ->  | G33: =-VLOOKUP(F33,Procenti!$A$2:$B$169,2,FALSE) ->  | I33: =-VLOOKUP(H33,Procenti!$A$2:$B$169,2,FALSE) ->  | K33: =-VLOOKUP(J33,Procenti!$A$2:$B$169,2,FALSE) ->  | M33: =-VLOOKUP(L33,Procenti!$A$2:$B$169,2,FALSE) -> 
A34: P13 | B34: 15 | C34: theta | E34: =-VLOOKUP(D34,Procenti!$A$2:$B$169,2,FALSE) ->  | G34: =-VLOOKUP(F34,Procenti!$A$2:$B$169,2,FALSE) ->  | I34: =-VLOOKUP(H34,Procenti!$A$2:$B$169,2,FALSE) ->  | K34: =-VLOOKUP(J34,Procenti!$A$2:$B$169,2,FALSE) ->  | M34: =-VLOOKUP(L34,Procenti!$A$2:$B$169,2,FALSE) -> 
A35: P13 | B35: 16 | C35: F | E35: =-VLOOKUP(D35,Procenti!$A$2:$B$169,2,FALSE) ->  | G35: =-VLOOKUP(F35,Procenti!$A$2:$B$169,2,FALSE) ->  | I35: =-VLOOKUP(H35,Procenti!$A$2:$B$169,2,FALSE) ->  | K35: =-VLOOKUP(J35,Procenti!$A$2:$B$169,2,FALSE) ->  | M35: =-VLOOKUP(L35,Procenti!$A$2:$B$169,2,FALSE) -> 
A36: P7 | B36: 17 | C36: Možg. M | E36: =VLOOKUP(D36,Procenti!$A$2:$B$169,2,FALSE) ->  | G36: =VLOOKUP(F36,Procenti!$A$2:$B$169,2,FALSE) ->  | I36: =VLOOKUP(H36,Procenti!$A$2:$B$169,2,FALSE) ->  | K36: =VLOOKUP(J36,Procenti!$A$2:$B$169,2,FALSE) ->  | M36: =VLOOKUP(L36,Procenti!$A$2:$B$169,2,FALSE) -> 
A37: P7 | B37: 18 | C37: Možg. MSV | E37: =VLOOKUP(D37,Procenti!$A$2:$B$169,2,FALSE) ->  | G37: =VLOOKUP(F37,Procenti!$A$2:$B$169,2,FALSE) ->  | I37: =VLOOKUP(H37,Procenti!$A$2:$B$169,2,FALSE) ->  | K37: =VLOOKUP(J37,Procenti!$A$2:$B$169,2,FALSE) ->  | M37: =VLOOKUP(L37,Procenti!$A$2:$B$169,2,FALSE) -> 
A38: P7 | B38: 19 | C38: Možg. MJV | E38: =VLOOKUP(D38,Procenti!$A$2:$B$169,2,FALSE) ->  | G38: =VLOOKUP(F38,Procenti!$A$2:$B$169,2,FALSE) ->  | I38: =VLOOKUP(H38,Procenti!$A$2:$B$169,2,FALSE) ->  | K38: =VLOOKUP(J38,Procenti!$A$2:$B$169,2,FALSE) ->  | M38: =VLOOKUP(L38,Procenti!$A$2:$B$169,2,FALSE) -> 
A39: P7 | B39: 20 | C39: Možg. MJZ | E39: =VLOOKUP(D39,Procenti!$A$2:$B$169,2,FALSE) ->  | G39: =VLOOKUP(F39,Procenti!$A$2:$B$169,2,FALSE) ->  | I39: =VLOOKUP(H39,Procenti!$A$2:$B$169,2,FALSE) ->  | K39: =VLOOKUP(J39,Procenti!$A$2:$B$169,2,FALSE) ->  | M39: =VLOOKUP(L39,Procenti!$A$2:$B$169,2,FALSE) -> 
A40: P7 | B40: 21 | C40: Možg. MSZ | E40: =VLOOKUP(D40,Procenti!$A$2:$B$169,2,FALSE) ->  | G40: =VLOOKUP(F40,Procenti!$A$2:$B$169,2,FALSE) ->  | I40: =VLOOKUP(H40,Procenti!$A$2:$B$169,2,FALSE) ->  | K40: =VLOOKUP(J40,Procenti!$A$2:$B$169,2,FALSE) ->  | M40: =VLOOKUP(L40,Procenti!$A$2:$B$169,2,FALSE) -> 
A41: P14 | B41: 22 | C41: omikron | E41: =-VLOOKUP(D42,Procenti!$A$2:$B$169,2,FALSE) ->  | G41: =-VLOOKUP(F41,Procenti!$A$2:$B$169,2,FALSE) ->  | I41: =-VLOOKUP(H41,Procenti!$A$2:$B$169,2,FALSE) ->  | K41: =-VLOOKUP(J41,Procenti!$A$2:$B$169,2,FALSE) ->  | M41: =-VLOOKUP(L41,Procenti!$A$2:$B$169,2,FALSE) -> 
A42: P14 | B42: 23 | C42: eta | E42: =-VLOOKUP(D43,Procenti!$A$2:$B$169,2,FALSE) ->  | G42: =-VLOOKUP(F42,Procenti!$A$2:$B$169,2,FALSE) ->  | I42: =-VLOOKUP(H42,Procenti!$A$2:$B$169,2,FALSE) ->  | K42: =-VLOOKUP(J42,Procenti!$A$2:$B$169,2,FALSE) ->  | M42: =-VLOOKUP(L42,Procenti!$A$2:$B$169,2,FALSE) -> 
A43: P14 | B43: 24 | C43: ksi | E43: =-VLOOKUP(D44,Procenti!$A$2:$B$169,2,FALSE) ->  | G43: =-VLOOKUP(F43,Procenti!$A$2:$B$169,2,FALSE) ->  | I43: =-VLOOKUP(H43,Procenti!$A$2:$B$169,2,FALSE) ->  | K43: =-VLOOKUP(J43,Procenti!$A$2:$B$169,2,FALSE) ->  | M43: =-VLOOKUP(L43,Procenti!$A$2:$B$169,2,FALSE) -> 
A44: P14 | B44: 25 | C44: lambda | E44: =-VLOOKUP(D45,Procenti!$A$2:$B$169,2,FALSE) ->  | G44: =-VLOOKUP(F44,Procenti!$A$2:$B$169,2,FALSE) ->  | I44: =-VLOOKUP(H44,Procenti!$A$2:$B$169,2,FALSE) ->  | K44: =-VLOOKUP(J44,Procenti!$A$2:$B$169,2,FALSE) ->  | M44: =-VLOOKUP(L44,Procenti!$A$2:$B$169,2,FALSE) -> 
A45: P14 | B45: 26 | C45: omega | E45: =-VLOOKUP(D46,Procenti!$A$2:$B$169,2,FALSE) ->  | G45: =-VLOOKUP(F45,Procenti!$A$2:$B$169,2,FALSE) ->  | I45: =-VLOOKUP(H45,Procenti!$A$2:$B$169,2,FALSE) ->  | K45: =-VLOOKUP(J45,Procenti!$A$2:$B$169,2,FALSE) ->  | M45: =-VLOOKUP(L45,Procenti!$A$2:$B$169,2,FALSE) -> 
A46: P14 | B46: 27 | C46: ro | E46: =-VLOOKUP(D47,Procenti!$A$2:$B$169,2,FALSE) ->  | G46: =-VLOOKUP(F46,Procenti!$A$2:$B$169,2,FALSE) ->  | I46: =-VLOOKUP(H46,Procenti!$A$2:$B$169,2,FALSE) ->  | K46: =-VLOOKUP(J46,Procenti!$A$2:$B$169,2,FALSE) ->  | M46: =-VLOOKUP(L46,Procenti!$A$2:$B$169,2,FALSE) -> 
A47: P14 | B47: 28 | C47: zeta | E47: =-VLOOKUP(D48,Procenti!$A$2:$B$169,2,FALSE) ->  | G47: =-VLOOKUP(F47,Procenti!$A$2:$B$169,2,FALSE) ->  | I47: =-VLOOKUP(H47,Procenti!$A$2:$B$169,2,FALSE) ->  | K47: =-VLOOKUP(J47,Procenti!$A$2:$B$169,2,FALSE) ->  | M47: =-VLOOKUP(L47,Procenti!$A$2:$B$169,2,FALSE) -> 
A48: P8 | B48: 29 | C48: O(pi) | E48: =-VLOOKUP(D48,Procenti!$A$2:$B$169,2,FALSE) ->  | G48: =-VLOOKUP(F48,Procenti!$A$2:$B$169,2,FALSE) ->  | I48: =-VLOOKUP(H48,Procenti!$A$2:$B$169,2,FALSE) ->  | K48: =-VLOOKUP(J48,Procenti!$A$2:$B$169,2,FALSE) ->  | M48: =-VLOOKUP(L48,Procenti!$A$2:$B$169,2,FALSE) -> 
A49: P8 | B49: 30 | C49: I(pi) | E49: =-VLOOKUP(D49,Procenti!$A$2:$B$169,2,FALSE) ->  | G49: =-VLOOKUP(F49,Procenti!$A$2:$B$169,2,FALSE) ->  | I49: =-VLOOKUP(H49,Procenti!$A$2:$B$169,2,FALSE) ->  | K49: =-VLOOKUP(J49,Procenti!$A$2:$B$169,2,FALSE) ->  | M49: =-VLOOKUP(L49,Procenti!$A$2:$B$169,2,FALSE) -> 
A50: P8 | B50: 31 | C50: alfa(pi) | E50: =-VLOOKUP(D50,Procenti!$A$2:$B$169,2,FALSE) ->  | G50: =-VLOOKUP(F50,Procenti!$A$2:$B$169,2,FALSE) ->  | I50: =-VLOOKUP(H50,Procenti!$A$2:$B$169,2,FALSE) ->  | K50: =-VLOOKUP(J50,Procenti!$A$2:$B$169,2,FALSE) ->  | M50: =-VLOOKUP(L50,Procenti!$A$2:$B$169,2,FALSE) -> 
A51: P8 | B51: 32 | C51: beta(pi) | E51: =-VLOOKUP(D51,Procenti!$A$2:$B$169,2,FALSE) ->  | G51: =-VLOOKUP(F51,Procenti!$A$2:$B$169,2,FALSE) ->  | I51: =-VLOOKUP(H51,Procenti!$A$2:$B$169,2,FALSE) ->  | K51: =-VLOOKUP(J51,Procenti!$A$2:$B$169,2,FALSE) ->  | M51: =-VLOOKUP(L51,Procenti!$A$2:$B$169,2,FALSE) -> 
A52: P8 | B52: 33 | C52: P(pi) | E52: =-VLOOKUP(D52,Procenti!$A$2:$B$169,2,FALSE) ->  | G52: =-VLOOKUP(F52,Procenti!$A$2:$B$169,2,FALSE) ->  | I52: =-VLOOKUP(H52,Procenti!$A$2:$B$169,2,FALSE) ->  | K52: =-VLOOKUP(J52,Procenti!$A$2:$B$169,2,FALSE) ->  | M52: =-VLOOKUP(L52,Procenti!$A$2:$B$169,2,FALSE) -> 
D54: BK V. | E54: % | F54: BK V. | G54: % | H54: BK V. | I54: % | J54: BK V. | K54: % | L54: BK V. | M54: %
A55: MP1 | C55: Škodljiv vpliv | E55: =-VLOOKUP(D55,Procenti!$A$2:$B$169,2,FALSE) ->  | G55: =-VLOOKUP(F55,Procenti!$A$2:$B$169,2,FALSE) ->  | I55: =-VLOOKUP(H55,Procenti!$A$2:$B$169,2,FALSE) ->  | K55: =-VLOOKUP(J55,Procenti!$A$2:$B$169,2,FALSE) ->  | M55: =-VLOOKUP(L55,Procenti!$A$2:$B$169,2,FALSE) -> 
A56: MP4 | B56: Relativna kakovost v okviru opazovanega merilnega polja
A57: MP4 | B57: Absolutna kakovost
A58: MP5 do MP32 | B58: Absolutna kakovost
A59: MP33 | B59: Baza BIO vzorcev in pridobljenega znanja pravilno umrlih BIOsistemov aktivne in pasivne inteligence.
A61: OGBP | B61: BK zaščita S-ALFA | E61: =VLOOKUP(D61,Procenti!$Q$2:$R$169,2,FALSE) -> 0 | G61: =VLOOKUP(F61,Procenti!$Q$2:$R$169,2,FALSE) -> 0 | I61: =VLOOKUP(H61,Procenti!$Q$2:$R$169,2,FALSE) -> 0 | K61: =VLOOKUP(J61,Procenti!$Q$1:$R$169,2,FALSE) -> 0 | M61: =VLOOKUP(L61,Procenti!$Q$1:$R$169,2,FALSE) -> 0
A62: S1 do S33 | C62: Vpliv na S1 do S33: | E62: =VLOOKUP(D62,Procenti!$Q$1:$R$169,2,FALSE) -> 0 | G62: =VLOOKUP(F62,Procenti!$Q$1:$R$169,2,FALSE) -> 0 | I62: =VLOOKUP(H62,Procenti!$Q$1:$R$169,2,FALSE) -> 0 | K62: =VLOOKUP(J62,Procenti!$Q$1:$R$169,2,FALSE) -> 0 | M62: =VLOOKUP(L62,Procenti!$Q$1:$R$169,2,FALSE) -> 0
D63: BK V. | E63: % | F63: BK V. | G63: % | H63: BK V. | I63: % | J63: BK V. | K63: % | L63: BK V. | M63: %
A64: Legenda | B64: L384 je relativna kakovost v opazovanem merilnem polju. | H64: MP4L384 je absolutna kakovost v celotnem merilnem obsegu.
A65: BETA usmeritev 0 do 8 | E65: =D65/8*100 -> 0 | G65: =F65/8*100 -> 0 | I65: =H65/8*100 -> 0 | K65: =J65/8*100 -> 0 | M65: =L65/8*100 -> 0
A66: ALFA usmeritev 0 do 8 | E66: =D66/8*100 -> 0 | G66: =F66/8*100 -> 0 | I66: =H66/8*100 -> 0 | K66: =J66/8*100 -> 0 | M66: =L66/8*100 -> 0
A67: D33
A68: Priimek
A69: Ime
A70: Naziv
A71: Naslov
A72: Datum
A73: KODA
A74: Ura
A75: BIO | D75: 1 | F75: 2 | H75: 3 | J75: 4 | L75: 5
A76: Parametri | B76: Status | D76: Meritev | E76: % | F76: GA1,2,3,4 | G76: % | H76: AP01-33 | I76: % | J76: BT1 | K76: % | L76: BT2 do BT4 | M76: %
A77: P15 | B77: K= | C77: od -12 do +8 | E77: =VLOOKUP(D77,Procenti!$M$2:$N$169,2,FALSE) ->  | G77: =VLOOKUP(F77,Procenti!$M$2:$N$169,2,FALSE) ->  | I77: =VLOOKUP(H77,Procenti!$M$2:$N$169,2,FALSE) ->  | K77: =VLOOKUP(J77,Procenti!$M$2:$N$169,2,FALSE) ->  | M77: =VLOOKUP(L77,Procenti!$M$2:$N$169,2,FALSE) -> 
A78: P1 | B78: D33=S... | E78: =VLOOKUP(D78,Procenti!$O$2:$P$169,2,FALSE) ->  | G78: =VLOOKUP(F78,Procenti!$O$2:$P$169,2,FALSE) ->  | I78: =VLOOKUP(H78,Procenti!$O$2:$P$169,2,FALSE) ->  | K78: =VLOOKUP(J78,Procenti!$O$2:$P$169,2,FALSE) ->  | M78: =VLOOKUP(L78,Procenti!$O$2:$P$169,2,FALSE) -> 
A79: P2 | B79: BK temperatura: | E79: =-VLOOKUP(D79,Procenti!$I$2:$J$169,2,FALSE) ->  | G79: =-VLOOKUP(F79,Procenti!$I$2:$J$169,2,FALSE) ->  | I79: =-VLOOKUP(H79,Procenti!$I$2:$J$169,2,FALSE) ->  | K79: =-VLOOKUP(J79,Procenti!$I$2:$J$169,2,FALSE) ->  | M79: =-VLOOKUP(L79,Procenti!$I$2:$J$169,2,FALSE) -> 
A80: P3 | B80: BK Zasvojenost: | E80: =-VLOOKUP(D80,Procenti!$K$2:$L$169,2,FALSE) ->  | G80: =-VLOOKUP(F80,Procenti!$K$2:$L$169,2,FALSE) ->  | I80: =-VLOOKUP(H80,Procenti!$K$2:$L$169,2,FALSE) ->  | K80: =-VLOOKUP(J80,Procenti!$K$2:$L$169,2,FALSE) ->  | M80: =-VLOOKUP(L80,Procenti!$K$2:$L$169,2,FALSE) -> 
A81: P4 | B81: BK nivo zdravja: | E81: =VLOOKUP(D81,Procenti!$E$1:$F$169,2,FALSE) -> 0 | G81: =VLOOKUP(F81,Procenti!$E$1:$F$169,2,FALSE) -> 0 | I81: =VLOOKUP(H81,Procenti!$E$1:$F$169,2,FALSE) -> 0 | K81: =VLOOKUP(J81,Procenti!$E$1:$F$169,2,FALSE) -> 0 | M81: =VLOOKUP(L81,Procenti!$E$1:$F$169,2,FALSE) -> 0
A82: P5 | B82: BK nivo kriminala: | E82: =-VLOOKUP(D82,Procenti!$G$1:$H$169,2,FALSE) -> 0 | G82: =-VLOOKUP(F82,Procenti!$G$1:$H$169,2,FALSE) -> 0 | I82: =-VLOOKUP(H82,Procenti!$G$1:$H$169,2,FALSE) -> 0 | K82: =-VLOOKUP(J82,Procenti!$G$1:$H$169,2,FALSE) -> 0 | M82: =-VLOOKUP(L82,Procenti!$G$1:$H$169,2,FALSE) -> 0
A84: Meritve v razširjenem merilnem polju. | D84: 1 | F84: 2 | H84: 3 | J84: 4 | L84: 4
A85: - - ali + + | B85: Št.: | C85: BIOenergije | D85: BK V. | E85: % | F85: BK V. | G85: % | H85: BK V. | I85: % | J85: BK V. | K85: % | L85: BK V. | M85: %
A86: S1 | B86: 1 | C86: I(β ) | E86: =-VLOOKUP(D86,Procenti!$A$2:$B$169,2,FALSE) ->  | G86: =-VLOOKUP(F86,Procenti!$A$2:$B$169,2,FALSE) ->  | I86: =-VLOOKUP(H86,Procenti!$A$2:$B$169,2,FALSE) ->  | K86: =-VLOOKUP(J86,Procenti!$A$2:$B$169,2,FALSE) ->  | M86: =-VLOOKUP(L86,Procenti!$A$2:$B$169,2,FALSE) -> 
A87: S2 | B87: 2 | C87: I(P) | E87: =-VLOOKUP(D87,Procenti!$A$2:$B$169,2,FALSE) ->  | G87: =-VLOOKUP(F87,Procenti!$A$2:$B$169,2,FALSE) ->  | I87: =-VLOOKUP(H87,Procenti!$A$2:$B$169,2,FALSE) ->  | K87: =-VLOOKUP(J87,Procenti!$A$2:$B$169,2,FALSE) ->  | M87: =-VLOOKUP(L87,Procenti!$A$2:$B$169,2,FALSE) -> 
A88: S3 | B88: 3 | C88: I(F) | E88: =-VLOOKUP(D88,Procenti!$A$2:$B$169,2,FALSE) ->  | G88: =-VLOOKUP(F88,Procenti!$A$2:$B$169,2,FALSE) ->  | I88: =-VLOOKUP(H88,Procenti!$A$2:$B$169,2,FALSE) ->  | K88: =-VLOOKUP(J88,Procenti!$A$2:$B$169,2,FALSE) ->  | M88: =-VLOOKUP(L88,Procenti!$A$2:$B$169,2,FALSE) -> 
A89: S4 | B89: 4 | C89: I(M) | E89: =-VLOOKUP(D89,Procenti!$A$2:$B$169,2,FALSE) ->  | G89: =-VLOOKUP(F89,Procenti!$A$2:$B$169,2,FALSE) ->  | I89: =-VLOOKUP(H89,Procenti!$A$2:$B$169,2,FALSE) ->  | K89: =-VLOOKUP(J89,Procenti!$A$2:$B$169,2,FALSE) ->  | M89: =-VLOOKUP(L89,Procenti!$A$2:$B$169,2,FALSE) -> 
A90: S5 | B90: 5 | C90: δ(ζ) | E90: =-VLOOKUP(D90,Procenti!$A$2:$B$169,2,FALSE) ->  | G90: =-VLOOKUP(F90,Procenti!$A$2:$B$169,2,FALSE) ->  | I90: =VLOOKUP(H90,Procenti!$A$2:$B$169,2,FALSE) ->  | K90: =VLOOKUP(J90,Procenti!$A$2:$B$169,2,FALSE) ->  | M90: =VLOOKUP(L90,Procenti!$A$2:$B$169,2,FALSE) -> 
A91: S6 | B91: 6 | C91: δ(V) | E91: =-VLOOKUP(D91,Procenti!$A$2:$B$169,2,FALSE) ->  | G91: =-VLOOKUP(F91,Procenti!$A$2:$B$169,2,FALSE) ->  | I91: =VLOOKUP(H91,Procenti!$A$2:$B$169,2,FALSE) ->  | K91: =VLOOKUP(J91,Procenti!$A$2:$B$169,2,FALSE) ->  | M91: =VLOOKUP(L91,Procenti!$A$2:$B$169,2,FALSE) -> 
A92: S7 | B92: 7 | C92: δ(γ) | E92: =VLOOKUP(D92,Procenti!$A$2:$B$169,2,FALSE) ->  | G92: =VLOOKUP(F92,Procenti!$A$2:$B$169,2,FALSE) ->  | I92: =VLOOKUP(H92,Procenti!$A$2:$B$169,2,FALSE) ->  | K92: =VLOOKUP(J92,Procenti!$A$2:$B$169,2,FALSE) ->  | M92: =VLOOKUP(L92,Procenti!$A$2:$B$169,2,FALSE) -> 
A93: S8 | B93: 8 | C93: δ(κ) | E93: =VLOOKUP(D93,Procenti!$A$2:$B$169,2,FALSE) ->  | G93: =VLOOKUP(F93,Procenti!$A$2:$B$169,2,FALSE) ->  | I93: =VLOOKUP(H93,Procenti!$A$2:$B$169,2,FALSE) ->  | K93: =VLOOKUP(J93,Procenti!$A$2:$B$169,2,FALSE) ->  | M93: =VLOOKUP(L93,Procenti!$A$2:$B$169,2,FALSE) -> 
A94: S9 | B94: 9 | C94: β(C) | E94: =VLOOKUP(D94,Procenti!$A$2:$B$169,2,FALSE) ->  | G94: =VLOOKUP(F94,Procenti!$A$2:$B$169,2,FALSE) ->  | I94: =VLOOKUP(H94,Procenti!$A$2:$B$169,2,FALSE) ->  | K94: =VLOOKUP(J94,Procenti!$A$2:$B$169,2,FALSE) ->  | M94: =VLOOKUP(L94,Procenti!$A$2:$B$169,2,FALSE) -> 
A95: S10 | B95: 10 | C95: β(θ) | E95: =VLOOKUP(D95,Procenti!$A$2:$B$169,2,FALSE) ->  | G95: =VLOOKUP(F95,Procenti!$A$2:$B$169,2,FALSE) ->  | I95: =VLOOKUP(H95,Procenti!$A$2:$B$169,2,FALSE) ->  | K95: =VLOOKUP(J95,Procenti!$A$2:$B$169,2,FALSE) ->  | M95: =VLOOKUP(L95,Procenti!$A$2:$B$169,2,FALSE) -> 
A96: S11 | B96: 11 | C96: β(F) | E96: =-VLOOKUP(D96,Procenti!$A$2:$B$169,2,FALSE) ->  | G96: =-VLOOKUP(F96,Procenti!$A$2:$B$169,2,FALSE) ->  | I96: =-VLOOKUP(H96,Procenti!$A$2:$B$169,2,FALSE) ->  | K96: =-VLOOKUP(J96,Procenti!$A$2:$B$169,2,FALSE) ->  | M96: =-VLOOKUP(L96,Procenti!$A$2:$B$169,2,FALSE) -> 
A97: S12 | B97: 12 | C97: β(ι) | E97: =VLOOKUP(D97,Procenti!$A$2:$B$169,2,FALSE) ->  | G97: =VLOOKUP(F97,Procenti!$A$2:$B$169,2,FALSE) ->  | I97: =VLOOKUP(H97,Procenti!$A$2:$B$169,2,FALSE) ->  | K97: =VLOOKUP(J97,Procenti!$A$2:$B$169,2,FALSE) ->  | M97: =VLOOKUP(L97,Procenti!$A$2:$B$169,2,FALSE) -> 
A98: S13 | B98: 13 | C98: β(H) | E98: =VLOOKUP(D98,Procenti!$A$2:$B$169,2,FALSE) ->  | G98: =VLOOKUP(F98,Procenti!$A$2:$B$169,2,FALSE) ->  | I98: =VLOOKUP(H98,Procenti!$A$2:$B$169,2,FALSE) ->  | K98: =VLOOKUP(J98,Procenti!$A$2:$B$169,2,FALSE) ->  | M98: =VLOOKUP(L98,Procenti!$A$2:$B$169,2,FALSE) -> 
A99: S14 | B99: 14 | C99: α(α) | E99: =-VLOOKUP(D99,Procenti!$A$2:$B$169,2,FALSE) ->  | G99: =-VLOOKUP(F99,Procenti!$A$2:$B$169,2,FALSE) ->  | I99: =-VLOOKUP(H99,Procenti!$A$2:$B$169,2,FALSE) ->  | K99: =-VLOOKUP(J99,Procenti!$A$2:$B$169,2,FALSE) ->  | M99: =-VLOOKUP(L99,Procenti!$A$2:$B$169,2,FALSE) -> 
A100: S15 | B100: 15 | C100: α(I) | E100: =-VLOOKUP(D100,Procenti!$A$2:$B$169,2,FALSE) ->  | G100: =-VLOOKUP(F100,Procenti!$A$2:$B$169,2,FALSE) ->  | I100: =-VLOOKUP(H100,Procenti!$A$2:$B$169,2,FALSE) ->  | K100: =-VLOOKUP(J100,Procenti!$A$2:$B$169,2,FALSE) ->  | M100: =-VLOOKUP(L100,Procenti!$A$2:$B$169,2,FALSE) -> 
A101: S16 | B101: 16 | C101: α(δ) | E101: =VLOOKUP(D101,Procenti!$A$2:$B$169,2,FALSE) ->  | G101: =VLOOKUP(F101,Procenti!$A$2:$B$169,2,FALSE) ->  | I101: =VLOOKUP(H101,Procenti!$A$2:$B$169,2,FALSE) ->  | K101: =VLOOKUP(J101,Procenti!$A$2:$B$169,2,FALSE) ->  | M101: =VLOOKUP(L101,Procenti!$A$2:$B$169,2,FALSE) -> 
A102: S17 | B102: 17 | C102: α(B) | E102: =VLOOKUP(D102,Procenti!$A$2:$B$169,2,FALSE) ->  | G102: =VLOOKUP(F102,Procenti!$A$2:$B$169,2,FALSE) ->  | I102: =VLOOKUP(H102,Procenti!$A$2:$B$169,2,FALSE) ->  | K102: =VLOOKUP(J102,Procenti!$A$2:$B$169,2,FALSE) ->  | M102: =VLOOKUP(L102,Procenti!$A$2:$B$169,2,FALSE) -> 
A103: S18 | B103: 18 | C103: α(O) | E103: =-VLOOKUP(D103,Procenti!$A$2:$B$169,2,FALSE) ->  | G103: =-VLOOKUP(F103,Procenti!$A$2:$B$169,2,FALSE) ->  | I103: =-VLOOKUP(H103,Procenti!$A$2:$B$169,2,FALSE) ->  | K103: =-VLOOKUP(J103,Procenti!$A$2:$B$169,2,FALSE) ->  | M103: =-VLOOKUP(L103,Procenti!$A$2:$B$169,2,FALSE) -> 
A104: S19 | B104: 19 | C104: α(θ) | E104: =VLOOKUP(D104,Procenti!$A$2:$B$169,2,FALSE) ->  | G104: =VLOOKUP(F104,Procenti!$A$2:$B$169,2,FALSE) ->  | I104: =VLOOKUP(H104,Procenti!$A$2:$B$169,2,FALSE) ->  | K104: =VLOOKUP(J104,Procenti!$A$2:$B$169,2,FALSE) ->  | M104: =VLOOKUP(L104,Procenti!$A$2:$B$169,2,FALSE) -> 
A105: S20 | B105: 20 | C105: α(F) | E105: =VLOOKUP(D105,Procenti!$A$2:$B$169,2,FALSE) ->  | G105: =VLOOKUP(F105,Procenti!$A$2:$B$169,2,FALSE) ->  | I105: =VLOOKUP(H105,Procenti!$A$2:$B$169,2,FALSE) ->  | K105: =VLOOKUP(J105,Procenti!$A$2:$B$169,2,FALSE) ->  | M105: =VLOOKUP(L105,Procenti!$A$2:$B$169,2,FALSE) -> 
A106: S21 | B106: 21 | C106: α(M-MSZ) | E106: =-VLOOKUP(D106,Procenti!$A$2:$B$169,2,FALSE) ->  | G106: =-VLOOKUP(F106,Procenti!$A$2:$B$169,2,FALSE) ->  | I106: =-VLOOKUP(H106,Procenti!$A$2:$B$169,2,FALSE) ->  | K106: =-VLOOKUP(J106,Procenti!$A$2:$B$169,2,FALSE) ->  | M106: =-VLOOKUP(L106,Procenti!$A$2:$B$169,2,FALSE) -> 
A107: S22 | B107: 22 | C107: α(I,O,P) | E107: =-VLOOKUP(D107,Procenti!$A$2:$B$169,2,FALSE) ->  | G107: =-VLOOKUP(F107,Procenti!$A$2:$B$169,2,FALSE) ->  | I107: =-VLOOKUP(H107,Procenti!$A$2:$B$169,2,FALSE) ->  | K107: =-VLOOKUP(J107,Procenti!$A$2:$B$169,2,FALSE) ->  | M107: =-VLOOKUP(L107,Procenti!$A$2:$B$169,2,FALSE) -> 
A108: S23 | B108: 23 | C108: α(P,C,δ,θ,F) | E108: =-VLOOKUP(D108,Procenti!$A$2:$B$169,2,FALSE) ->  | G108: =-VLOOKUP(F108,Procenti!$A$2:$B$169,2,FALSE) ->  | I108: =-VLOOKUP(H108,Procenti!$A$2:$B$169,2,FALSE) ->  | K108: =-VLOOKUP(J108,Procenti!$A$2:$B$169,2,FALSE) ->  | M108: =-VLOOKUP(L108,Procenti!$A$2:$B$169,2,FALSE) -> 
A109: S24 | B109: 24 | C109: α(β) | E109: =-VLOOKUP(D109,Procenti!$A$2:$B$169,2,FALSE) ->  | G109: =-VLOOKUP(F109,Procenti!$A$2:$B$169,2,FALSE) ->  | I109: =-VLOOKUP(H109,Procenti!$A$2:$B$169,2,FALSE) ->  | K109: =-VLOOKUP(J109,Procenti!$A$2:$B$169,2,FALSE) ->  | M109: =-VLOOKUP(L109,Procenti!$A$2:$B$169,2,FALSE) -> 
A110: S25 | B110: 25 | C110: α(β,P,C,δ,θ,F) | E110: =-VLOOKUP(D110,Procenti!$A$2:$B$169,2,FALSE) ->  | G110: =-VLOOKUP(F110,Procenti!$A$2:$B$169,2,FALSE) ->  | I110: =-VLOOKUP(H110,Procenti!$A$2:$B$169,2,FALSE) ->  | K110: =-VLOOKUP(J110,Procenti!$A$2:$B$169,2,FALSE) ->  | M110: =-VLOOKUP(L110,Procenti!$A$2:$B$169,2,FALSE) -> 
A111: S26 | B111: 26 | C111: α(B,I,O) | E111: =-VLOOKUP(D111,Procenti!$A$2:$B$169,2,FALSE) ->  | G111: =-VLOOKUP(F111,Procenti!$A$2:$B$169,2,FALSE) ->  | I111: =-VLOOKUP(H111,Procenti!$A$2:$B$169,2,FALSE) ->  | K111: =-VLOOKUP(J111,Procenti!$A$2:$B$169,2,FALSE) ->  | M111: =-VLOOKUP(L111,Procenti!$A$2:$B$169,2,FALSE) -> 
A112: S27 | B112: 27 | C112: α(ι,H,γ) | E112: =-VLOOKUP(D112,Procenti!$A$2:$B$169,2,FALSE) ->  | G112: =-VLOOKUP(F112,Procenti!$A$2:$B$169,2,FALSE) ->  | I112: =-VLOOKUP(H112,Procenti!$A$2:$B$169,2,FALSE) ->  | K112: =-VLOOKUP(J112,Procenti!$A$2:$B$169,2,FALSE) ->  | M112: =-VLOOKUP(L112,Procenti!$A$2:$B$169,2,FALSE) -> 
A113: S28 | B113: 28 | C113: α(I,O,P,π) | E113: =-VLOOKUP(D113,Procenti!$A$2:$B$169,2,FALSE) ->  | G113: =-VLOOKUP(F113,Procenti!$A$2:$B$169,2,FALSE) ->  | I113: =-VLOOKUP(H113,Procenti!$A$2:$B$169,2,FALSE) ->  | K113: =-VLOOKUP(J113,Procenti!$A$2:$B$169,2,FALSE) ->  | M113: =-VLOOKUP(L113,Procenti!$A$2:$B$169,2,FALSE) -> 
A114: S29 | B114: 29 | C114: π(κ, ι, η) | E114: =VLOOKUP(D114,Procenti!$A$2:$B$169,2,FALSE) ->  | G114: =VLOOKUP(F114,Procenti!$A$2:$B$169,2,FALSE) ->  | I114: =VLOOKUP(H114,Procenti!$A$2:$B$169,2,FALSE) ->  | K114: =VLOOKUP(J114,Procenti!$A$2:$B$169,2,FALSE) ->  | M114: =VLOOKUP(L114,Procenti!$A$2:$B$169,2,FALSE) -> 
A115: S30 | B115: 30 | C115: π(V,ζ) | E115: =VLOOKUP(D115,Procenti!$A$2:$B$169,2,FALSE) ->  | G115: =VLOOKUP(F115,Procenti!$A$2:$B$169,2,FALSE) ->  | I115: =VLOOKUP(H115,Procenti!$A$2:$B$169,2,FALSE) ->  | K115: =VLOOKUP(J115,Procenti!$A$2:$B$169,2,FALSE) ->  | M115: =VLOOKUP(L115,Procenti!$A$2:$B$169,2,FALSE) -> 
A116: S31 | B116: 31 | C116: π(Ι) | E116: =VLOOKUP(D116,Procenti!$A$2:$B$169,2,FALSE) ->  | G116: =VLOOKUP(F116,Procenti!$A$2:$B$169,2,FALSE) ->  | I116: =VLOOKUP(H116,Procenti!$A$2:$B$169,2,FALSE) ->  | K116: =VLOOKUP(J116,Procenti!$A$2:$B$169,2,FALSE) ->  | M116: =VLOOKUP(L116,Procenti!$A$2:$B$169,2,FALSE) -> 
A117: S32 | B117: 32 | C117: π(γ) | E117: =-VLOOKUP(D117,Procenti!$A$2:$B$169,2,FALSE) ->  | G117: =-VLOOKUP(F117,Procenti!$A$2:$B$169,2,FALSE) ->  | I117: =-VLOOKUP(H117,Procenti!$A$2:$B$169,2,FALSE) ->  | K117: =-VLOOKUP(J117,Procenti!$A$2:$B$169,2,FALSE) ->  | M117: =-VLOOKUP(L117,Procenti!$A$2:$B$169,2,FALSE) -> 
A118: S33 | B118: 33 | C118: π(κ) | E118: =VLOOKUP(D118,Procenti!$A$2:$B$169,2,FALSE) ->  | G118: =VLOOKUP(F118,Procenti!$A$2:$B$169,2,FALSE) ->  | I118: =VLOOKUP(H118,Procenti!$A$2:$B$169,2,FALSE) ->  | K118: =VLOOKUP(J118,Procenti!$A$2:$B$169,2,FALSE) ->  | M118: =VLOOKUP(L118,Procenti!$A$2:$B$169,2,FALSE) -> 
D120: BK V. | E120: % | F120: BK V. | G120: % | H120: BK V. | I120: % | J120: BK V. | K120: % | L120: BK V. | M120: %
A121: MP1 | C121: Škodljiv vpliv | E121: =-VLOOKUP(D121,Procenti!$A$2:$B$169,2,FALSE) ->  | G121: =-VLOOKUP(F121,Procenti!$A$2:$B$169,2,FALSE) ->  | I121: =-VLOOKUP(H121,Procenti!$A$2:$B$169,2,FALSE) ->  | K121: =-VLOOKUP(J121,Procenti!$A$2:$B$169,2,FALSE) ->  | M121: =-VLOOKUP(L121,Procenti!$A$2:$B$169,2,FALSE) -> 
A122: MP4 | B122: Relativna kakovost v okviru opazovanega merilnega polja
A123: MP4 | B123: Absolutna kakovost
A124: MP5 do MP32 | B124: Absolutna kakovost
A125: MP33 | B125: Baza BIO vzorcev in pridobljenega znanja pravilno umrlih BIOsistemov aktivne in pasivne inteligence.
A127: OGBP | B127: BK zaščita S-ALFA | E127: =VLOOKUP(D127,Procenti!$Q$2:$R$169,2,FALSE) -> 0 | G127: =VLOOKUP(F127,Procenti!$Q$2:$R$169,2,FALSE) -> 0 | I127: =VLOOKUP(H127,Procenti!$Q$2:$R$169,2,FALSE) -> 0 | K127: =VLOOKUP(J127,Procenti!$Q$1:$R$169,2,FALSE) -> 0 | M127: =VLOOKUP(L127,Procenti!$Q$1:$R$169,2,FALSE) -> 0
A128: S1 do S33 | C128: Vpliv na S1 do S33: | E128: =VLOOKUP(D128,Procenti!$Q$1:$R$169,2,FALSE) -> 0 | G128: =VLOOKUP(F128,Procenti!$Q$1:$R$169,2,FALSE) -> 0 | I128: =VLOOKUP(H128,Procenti!$Q$1:$R$169,2,FALSE) -> 0 | K128: =VLOOKUP(J128,Procenti!$Q$1:$R$169,2,FALSE) -> 0 | M128: =VLOOKUP(L128,Procenti!$Q$1:$R$169,2,FALSE) -> 0
D129: BK V. | E129: % | F129: BK V. | G129: % | H129: BK V. | I129: % | J129: BK V. | K129: % | L129: BK V. | M129: %
A130: Legenda | B130: L384 je relativna kakovost v opazovanem merilnem polju. | H130: MP4L384 je absolutna kakovost v celotnem merilnem obsegu.
A131: BETA usmeritev 0 do 8 | E131: =D131/8*100 -> 0 | G131: =F131/8*100 -> 0 | I131: =H131/8*100 -> 0 | K131: =J131/8*100 -> 0 | M131: =L131/8*100 -> 0
A132: ALFA usmeritev 0 do 8 | E132: =D132/8*100 -> 0 | G132: =F132/8*100 -> 0 | I132: =H132/8*100 -> 0 | K132: =J132/8*100 -> 0 | M132: =L132/8*100 -> 0

Sheet KŽ

Sheet List2
A1: Opis | D1: =List1!#REF! ->  | E1: =List1!F4 -> 0 | F1: Opis | I1: =D1 ->  | J1: =E1 -> 0
A2: BETA žarki BE št.: 1 | D2: =List1!E20 ->  | E2: =List1!G86 ->  | F2: Sevanja S1 | I2: =List1!E86 ->  | J2: =List1!G86 -> 
A3: BETA žarki BE št.: 2 | D3: =List1!E21 ->  | E3: =List1!G87 ->  | F3: Sevanja S2 | I3: =List1!E87 ->  | J3: =List1!G87 -> 
A4: BETA žarki BE št.: 3 | D4: =List1!E22 ->  | E4: =List1!G88 ->  | F4: Sevanja S3 | I4: =List1!E88 ->  | J4: =List1!G88 -> 
A5: BETA žarki BE št.: 4 | D5: =List1!E23 ->  | E5: =List1!G89 ->  | F5: Sevanja S4 | I5: =List1!E89 ->  | J5: =List1!G89 -> 
A6: BETA žarki BE št.: 5 | D6: =List1!E24 ->  | E6: =List1!G90 ->  | F6: S5 | I6: =List1!E90 ->  | J6: =List1!G90 -> 
A7: BETA žarki BE št.: 6 | D7: =List1!E25 ->  | E7: =List1!G91 ->  | F7: S6 | I7: =List1!E91 ->  | J7: =List1!G91 -> 
A8: BIO BE št.: 7 | D8: =List1!E26 ->  | E8: =List1!G92 ->  | F8: S7 | I8: =List1!E92 ->  | J8: =List1!G92 -> 
A9: BIO BE št.: 8 | D9: =List1!E27 ->  | E9: =List1!G93 ->  | F9: S8 | I9: =List1!E93 ->  | J9: =List1!G93 -> 
A10: BIO BE št.: 9 | D10: =List1!E28 ->  | E10: =List1!G94 ->  | F10: S9 | I10: =List1!E94 ->  | J10: =List1!G94 -> 
A11: ALFA BE št.: 10 | D11: =List1!E29 ->  | E11: =List1!G95 ->  | F11: S10 | I11: =List1!E95 ->  | J11: =List1!G95 -> 
A12: BETA BE št.: 11 | D12: =List1!E30 ->  | E12: =List1!G96 ->  | F12: S11 | I12: =List1!E96 ->  | J12: =List1!G96 -> 
A13: P BE št.: 12 | D13: =List1!E31 ->  | E13: =List1!G97 ->  | F13: S12 | I13: =List1!E97 ->  | J13: =List1!G97 -> 
A14: ŠBKTR BE št.: 13 | D14: =List1!E32 ->  | E14: =List1!G98 ->  | F14: S13 | I14: =List1!E98 ->  | J14: =List1!G98 -> 
A15: ŠBKTR BE št.: 14 | D15: =List1!E33 ->  | E15: =List1!G99 ->  | F15: Bolezen S14 | I15: =List1!E99 ->  | J15: =List1!G99 -> 
A16: ŠBKTR BE št.: 15 | D16: =List1!E34 ->  | E16: =List1!G100 ->  | F16: BK krim. S15 | I16: =List1!E100 ->  | J16: =List1!G100 -> 
A17: ŠBKTR BE št.: 16 | D17: =List1!E35 ->  | E17: =List1!G101 ->  | F17: S16 | I17: =List1!E101 ->  | J17: =List1!G101 -> 
A18: Možganska BE št.: 17 | D18: =List1!E36 ->  | E18: =List1!G102 ->  | F18: S17 | I18: =List1!E102 ->  | J18: =List1!G102 -> 
A19: Možganska BE št.: 18 | D19: =List1!E37 ->  | E19: =List1!G103 ->  | F19: Psiha S18 | I19: =List1!E103 ->  | J19: =List1!G103 -> 
A20: Možganska BE št.: 19 | D20: =List1!E38 ->  | E20: =List1!G104 ->  | F20: S19 | I20: =List1!E104 ->  | J20: =List1!G104 -> 
A21: Možganska BE št.: 20 | D21: =List1!E39 ->  | E21: =List1!G105 ->  | F21: S20 | I21: =List1!E105 ->  | J21: =List1!G105 -> 
A22: Možganska BE št.: 21 | D22: =List1!E40 ->  | E22: =List1!G106 ->  | F22: Genetika S21 | I22: =List1!E106 ->  | J22: =List1!G106 -> 
A23: Hrana, Zdravila BE št.: 22 | D23: =List1!E41 ->  | E23: =List1!G107 ->  | F23: S22 | I23: =List1!E107 ->  | J23: =List1!G107 -> 
A24: Hrana, Zdravila BE št.: 23 | D24: =List1!E42 ->  | E24: =List1!G108 ->  | F24: S23 | I24: =List1!E108 ->  | J24: =List1!G108 -> 
A25: Hrana, Zdravila BE št.: 24 | D25: =List1!E43 ->  | E25: =List1!G109 ->  | F25: S24 | I25: =List1!E109 ->  | J25: =List1!G109 -> 
A26: Hrana, Zdravila BE št.: 25 | D26: =List1!E44 ->  | E26: =List1!G110 ->  | F26: S25 | I26: =List1!E110 ->  | J26: =List1!G110 -> 
A27: Hrana, Zdravila BE št.: 26 | D27: =List1!E45 ->  | E27: =List1!G111 ->  | F27: Hormoni S26 | I27: =List1!E111 ->  | J27: =List1!G111 -> 
A28: Hrana, Zdravila BE št.: 27 | D28: =List1!E46 ->  | E28: =List1!G112 ->  | F28: S27 | I28: =List1!E112 ->  | J28: =List1!G112 -> 
A29: Hrana, Zdravila BE št.: 28 | D29: =List1!E47 ->  | E29: =List1!G113 ->  | F29: Imunost S28 | I29: =List1!E113 ->  | J29: =List1!G113 -> 
A30: Status Bolezni št.: 29 | D30: =List1!E48 ->  | E30: =List1!G114 ->  | F30: S29 | I30: =List1!E114 ->  | J30: =List1!G114 -> 
A31: Status Bolezni št.: 30 | D31: =List1!E49 ->  | E31: =List1!G115 ->  | F31: S30 | I31: =List1!E115 ->  | J31: =List1!G115 -> 
A32: Status Bolezni št.: 31 | D32: =List1!E50 ->  | E32: =List1!G116 ->  | F32: S31 | I32: =List1!E116 ->  | J32: =List1!G116 -> 
A33: Status Bolezni št.: 32 | D33: =List1!E51 ->  | E33: =List1!G117 ->  | F33: S32 | I33: =List1!E117 ->  | J33: =List1!G117 -> 
A34: Status Bolezni št.: 33 | D34: =List1!E52 ->  | E34: =List1!G118 ->  | F34: S33 | I34: =List1!E118 ->  | J34: =List1!G118 -> 
A35: D53 S12-S17 | D35: =List1!E56 -> 0 | E35: =List1!G122 -> 0 | F35: =List1!A122 -> MP4 | I35: =List1!E122 -> 0 | J35: =List1!G122 -> 0
E37: =D1 ->  | F37: =E1 -> 0
A38: BKT
A39: BK temperatura: | E39: =List1!E13 ->  | F39: =List1!G13 -> 
A40: BK Zasvojenost: | E40: =List1!E14 ->  | F40: =List1!G14 -> 
A42: BZK
A43: BK nivo zdravja: | E43: =List1!E15 -> 0 | F43: =List1!G15 -> 0
A44: BK nivo kriminala: | E44: =List1!E16 -> 0 | F44: =List1!G14 -> 
A46: PPO | E46: =List1!E11 ->  | F46: =List1!G11 -> 
A48: D13-BAS v %
A49: P11, S-ALFA | E49: =List1!E31 ->  | F49: =List1!G31 -> 
A50: P9, G-ALFA | E50: =List1!E29 ->  | F50: =List1!G29 -> 
A51: P10, G-B ETA | E51: =List1!E30 ->  | F51: =List1!G30 -> 
A52: BIO nivoji | E52: =List1!E26 ->  | F52: =List1!G26 -> 
A53: Možganski nivoji | E53: =List1!E36 ->  | F53: =List1!G36 -> 
A56: D33-prognoza v %
A57: P16, - bolno, + zdravo | E57: =List1!E24 ->  | F57: =List1!G24 -> 
A58: S5, nivo regeneracije | E58: =List1!E90 ->  | F58: =List1!G90 -> 
A59: S7, nivo zdravja | E59: =List1!E92 ->  | F59: =List1!G92 -> 
A60: S29, Status D33 | E60: =List1!E114 ->  | F60: =List1!G114 -> 
A61: S14, nivo bolezni | E61: =List1!E100 ->  | F61: =List1!G100 -> 
A62: S15, zasvojenost | E62: =List1!E103 ->  | F62: =List1!G103 -> 
A63: S18, BK poškodba možganov | E63: =List1!E106 ->  | F63: =List1!G106 -> 
A64: S21, genetika | E64: =List1!E111 ->  | F64: =List1!G111 -> 
A65: S26, hormonski sistem | E65: =List1!E113 ->  | F65: =List1!G113 -> 
A66: S28, imunski sistem | E66: =List1!E113 ->  | F66: =List1!G113 -> 
A67: Progoza: v %; S39 - S7 | E67: =E60-E59 ->  | F67: =F60-F59 -> 
A68: D53-S12 do S17, BK zaščita | E68: =List1!E122 -> 0 | F68: =List1!G122 -> 0

Sheet Tabela pretvorb
A1: A0 | B1: 1
A2: A001 | B2: 1.07
A3: A002 | B3: 1.14
A4: A003 | B4: 1.215
A5: A006 | B5: 1.285
A6: A009 | B6: 1.357
A7: A012 | B7: 1.425
A8: A024 | B8: 1.5
A9: A036 | B9: 1.571
A10: A048 | B10: 1.642
A11: A096 | B11: 1.714
A12: A144 | B12: 1.785
A13: A192 | B13: 1.859
A14: A384 | B14: 1.928
A15: B0 | B15: 2
A16: B001 | B16: 2.07
A17: B002 | B17: 2.14
A18: B003 | B18: 2.215
A19: B006 | B19: 2.285
A20: B009 | B20: 2.357
A21: B012 | B21: 2.425
A22: B024 | B22: 2.5
A23: B036 | B23: 2.571
A24: B048 | B24: 2.642
A25: B096 | B25: 2.714
A26: B144 | B26: 2.785
A27: B192 | B27: 2.859
A28: B384 | B28: 2.928
A29: C0 | B29: 3
A30: C001 | B30: 3.07
A31: C002 | B31: 3.14
A32: C003 | B32: 3.215
A33: C006 | B33: 3.285
A34: C009 | B34: 3.357
A35: C012 | B35: 3.425
A36: C024 | B36: 3.5
A37: C036 | B37: 3.571
A38: C048 | B38: 3.642
A39: C096 | B39: 3.714
A40: C144 | B40: 3.785
A41: C192 | B41: 3.859
A42: C384 | B42: 3.928
A43: D0 | B43: 4
A44: D001 | B44: 4.07
A45: D002 | B45: 4.14
A46: D003 | B46: 4.215
A47: D006 | B47: 4.285
A48: D009 | B48: 4.357
A49: D012 | B49: 4.425
A50: D024 | B50: 4.5
A51: D036 | B51: 4.571
A52: D048 | B52: 4.642
A53: D096 | B53: 4.714
A54: D144 | B54: 4.785
A55: D192 | B55: 4.859
A56: D384 | B56: 4.928
A57: E0 | B57: 5
A58: E001 | B58: 5.07
A59: E002 | B59: 5.14
A60: E003 | B60: 5.215
A61: E006 | B61: 5.285
A62: E009 | B62: 5.357
A63: E012 | B63: 5.425
A64: E024 | B64: 5.5
A65: E036 | B65: 5.571
A66: E048 | B66: 5.642
A67: E096 | B67: 5.714
A68: E144 | B68: 5.785
A69: E192 | B69: 5.859
A70: E384 | B70: 5.928
A71: F0 | B71: 6
A72: F001 | B72: 6.07
A73: F002 | B73: 6.14
A74: F003 | B74: 6.215
A75: F006 | B75: 6.285
A76: F009 | B76: 6.357
A77: F012 | B77: 6.425
A78: F024 | B78: 6.5
A79: F036 | B79: 6.571
A80: F048 | B80: 6.642
A81: F096 | B81: 6.714
A82: F144 | B82: 6.785
A83: F192 | B83: 6.859
A84: F384 | B84: 6.928
A85: G0 | B85: 7
A86: G001 | B86: 7.07
A87: G002 | B87: 7.14
A88: G003 | B88: 7.215
A89: G006 | B89: 7.285
A90: G009 | B90: 7.357
A91: G012 | B91: 7.425
A92: G024 | B92: 7.5
A93: G036 | B93: 7.571
A94: G048 | B94: 7.642
A95: G096 | B95: 7.714
A96: G144 | B96: 7.785
A97: G192 | B97: 7.859
A98: G384 | B98: 7.928
A99: H0 | B99: 8
A100: H001 | B100: 8.07
A101: H002 | B101: 8.14
A102: H003 | B102: 8.215
A103: H006 | B103: 8.285
A104: H009 | B104: 8.357
A105: H012 | B105: 8.425
A106: H024 | B106: 8.5
A107: H036 | B107: 8.571
A108: H048 | B108: 8.642
A109: H096 | B109: 8.714
A110: H144 | B110: 8.785
A111: H192 | B111: 8.859
A112: H384 | B112: 8.928
A113: I0 | B113: 9
A114: I001 | B114: 9.07
A115: I002 | B115: 9.14
A116: I003 | B116: 9.215
A117: I006 | B117: 9.285
A118: I009 | B118: 9.357
A119: I012 | B119: 9.425
A120: I024 | B120: 9.5
A121: I036 | B121: 9.571
A122: I048 | B122: 9.642
A123: I096 | B123: 9.714
A124: I144 | B124: 9.785
A125: I192 | B125: 9.859
A126: I384 | B126: 9.928
A127: J0 | B127: 10
A128: J001 | B128: 10.07
A129: J002 | B129: 10.14
A130: J003 | B130: 10.215
A131: J006 | B131: 10.285
A132: J009 | B132: 10.357
A133: J012 | B133: 10.425
A134: J024 | B134: 10.5
A135: J036 | B135: 10.571
A136: J048 | B136: 10.642
A137: J096 | B137: 10.714
A138: J144 | B138: 10.785
A139: J192 | B139: 10.859
A140: J384 | B140: 10.928
A141: K0 | B141: 11
A142: K001 | B142: 11.07
A143: K002 | B143: 11.14
A144: K003 | B144: 11.215
A145: K006 | B145: 11.285
A146: K009 | B146: 11.357
A147: K012 | B147: 11.425
A148: K024 | B148: 11.5
A149: K036 | B149: 11.571
A150: K048 | B150: 11.642
A151: K096 | B151: 11.714
A152: K144 | B152: 11.785
A153: K192 | B153: 11.859
A154: K384 | B154: 11.928
A155: L0 | B155: 12
A156: L001 | B156: 12
A157: L002 | B157: 12.14
A158: L003 | B158: 12.215
A159: L006 | B159: 12.285
A160: L009 | B160: 12.357
A161: L012 | B161: 12.425
A162: L024 | B162: 12.5
A163: L036 | B163: 12.571
A164: L048 | B164: 12.642
A165: L096 | B165: 12.714
A166: L144 | B166: 12.785
A167: L192 | B167: 12.859
A168: L384 | B168: 12.928

Sheet Procenti
E1: 0 | F1: =(E1/33)*100 -> 0 | G1: 0 | H1: =(0/28)*100 -> 0 | Q1: 33 | R1: 100 | S1: 0 | T1: MP4A0 | U1: =(S1/4872)*100 -> 0 | V1: MP1A0 | W1: =(S1/167)*100 -> 0
A2: A0 | B2: =(E1/168)*100 -> 0 | C2: A0 | D2: =(E1/24)*100 -> 0 | E2: 1 | F2: 3.03030303 | G2: 1 | H2: =(1/28)*100 -> 3.571428571 | I2: 35 | J2: =(0/7)*100 -> 0 | K2: 36 | L2: =(0/6)*100 -> 0 | M2: 8 | N2: =(M2/8)*100 -> 100 | O2: 11 | P2: =(O2/11)*100 -> 100 | Q2: 32 | R2: 96.96969697 | S2: 1 | T2: MP4A001 | U2: =(S2/4872)*100 -> 0.02052545156 | V2: MP1A001 | W2: =(S2/167)*100 -> 0.5988023952
A3: A001 | B3: =(E2/168)*100 -> 0.5952380952 | C3: A001 | D3: 4.166666667 | E3: 2 | F3: 6.060606061 | G3: 2 | H3: =(2/28)*100 -> 7.142857143 | I3: 36 | J3: =(1/7)*100 -> 14.28571429 | K3: 37 | L3: =(1/6)*100 -> 16.66666667 | M3: 7 | N3: 87.5 | O3: 10 | P3: =(O3/11)*100 -> 90.90909091 | Q3: 31 | R3: 93.93939394 | S3: 2 | T3: MP4A002 | U3: =(S3/4872)*100 -> 0.04105090312 | V3: MP1A002 | W3: 1.19760479
A4: A002 | B4: 1.19047619 | C4: A002 | D4: 8.333333333 | E4: 3 | F4: 9.090909091 | G4: 3 | H4: =(3/28)*100 -> 10.71428571 | I4: 37 | J4: =(2/7)*100 -> 28.57142857 | K4: 38 | L4: =(2/6)*100 -> 33.33333333 | M4: 6 | N4: 75 | O4: 9 | P4: 81.81818182 | Q4: 30 | R4: 90.90909091 | S4: 3 | T4: MP4A003 | U4: 0.06157635468 | V4: MP1A003 | W4: 1.796407186
A5: A003 | B5: 1.785714286 | C5: A003 | D5: 12.5 | E5: 4 | F5: 12.12121212 | G5: 4 | H5: =(4/28)*100 -> 14.28571429 | I5: 38 | J5: =(3/7)*100 -> 42.85714286 | K5: 39 | L5: =(3/6)*100 -> 50 | M5: 5 | N5: 62.5 | O5: 8 | P5: 72.72727273 | Q5: 29 | R5: 87.87878788 | S5: 4 | T5: MP4A006 | U5: 0.08210180624 | V5: MP1A006 | W5: 2.395209581
A6: A006 | B6: 2.380952381 | C6: A006 | D6: 16.66666667 | E6: 5 | F6: 15.15151515 | G6: 5 | H6: =(5/28)*100 -> 17.85714286 | I6: 39 | J6: =(4/7)*100 -> 57.14285714 | K6: 40 | L6: =(4/6)*100 -> 66.66666667 | M6: 4 | N6: 50 | O6: 7 | P6: 63.63636364 | Q6: 28 | R6: 84.84848485 | S6: 5 | T6: MP4A009 | U6: 0.1026272578 | V6: MP1A009 | W6: 2.994011976
A7: A009 | B7: 2.976190476 | C7: A009 | D7: 20.83333333 | E7: 6 | F7: 18.18181818 | G7: 6 | H7: =(6/28)*100 -> 21.42857143 | I7: 40 | J7: =(5/7)*100 -> 71.42857143 | K7: 41 | L7: =(5/6)*100 -> 83.33333333 | M7: 3 | N7: 37.5 | O7: 6 | P7: 54.54545455 | Q7: 27 | R7: 81.81818182 | S7: 6 | T7: MP4A012 | U7: 0.1231527094 | V7: MP1A012 | W7: 3.592814371
A8: A012 | B8: 3.571428571 | C8: A012 | D8: 25 | E8: 7 | F8: 21.21212121 | G8: 7 | H8: =(7/28)*100 -> 25 | I8: 41 | J8: =(6/7)*100 -> 85.71428571 | K8: 42 | L8: =(6/6)*100 -> 100 | M8: 2 | N8: 25 | O8: 5 | P8: 45.45454545 | Q8: 26 | R8: 78.78787879 | S8: 7 | T8: MP4A024 | U8: 0.1436781609 | V8: MP1A024 | W8: 4.191616766
A9: A024 | B9: 4.166666667 | C9: A024 | D9: 29.16666667 | E9: 8 | F9: 24.24242424 | G9: 8 | H9: =(8/28)*100 -> 28.57142857 | I9: 42 | J9: =(7/7)*100 -> 100 | K9: A024 | L9: 0 | M9: 1 | N9: 12.5 | O9: 4 | P9: 36.36363636 | Q9: 25 | R9: 75.75757576 | S9: 8 | T9: MP4A036 | U9: 0.1642036125 | V9: MP1A036 | W9: 4.790419162
A10: A036 | B10: 4.761904762 | C10: A036 | D10: 33.33333333 | E10: 9 | F10: 27.27272727 | G10: 9 | H10: =(9/28)*100 -> 32.14285714 | K10: A036 | L10: 0.625 | M10: -1 | N10: =(M10/12)*100 -> -8.333333333 | O10: 3 | P10: 27.27272727 | Q10: 24 | R10: 72.72727273 | S10: 9 | T10: MP4A048 | U10: 0.184729064 | V10: MP1A048 | W10: 5.389221557
A11: A048 | B11: 5.357142857 | C11: A048 | D11: 37.5 | E11: 10 | F11: 30.3030303 | G11: 10 | H11: =(10/28)*100 -> 35.71428571 | K11: A048 | L11: 1.25 | M11: -2 | N11: -16.66666667 | O11: 2 | P11: 18.18181818 | Q11: 23 | R11: 69.6969697 | S11: 10 | T11: MP4A096 | U11: 0.2052545156 | V11: MP1A096 | W11: 5.988023952
A12: A096 | B12: 5.952380952 | C12: A096 | D12: 41.66666667 | E12: 11 | F12: 33.33333333 | G12: 11 | H12: =(11/28)*100 -> 39.28571429 | K12: A096 | L12: 1.875 | M12: -3 | N12: -25 | O12: 1 | P12: 9.090909091 | Q12: 22 | R12: 66.66666667 | S12: 11 | T12: MP4A144 | U12: 0.2257799672 | V12: MP1A144 | W12: 6.586826347
A13: A144 | B13: 6.547619048 | C13: A144 | D13: 45.83333333 | E13: 12 | F13: 36.36363636 | G13: 12 | H13: =(12/28)*100 -> 42.85714286 | K13: A144 | L13: 2.5 | M13: -4 | N13: -33.33333333 | O13: 33 | P13: -9 | Q13: 21 | R13: 63.63636364 | S13: 12 | T13: MP4A192 | U13: 0.2463054187 | V13: MP1A192 | W13: 7.185628743
A14: A192 | B14: 7.142857143 | C14: A192 | D14: 50 | E14: 13 | F14: 39.39393939 | G14: 13 | H14: =(13/28)*100 -> 46.42857143 | K14: A192 | L14: 3.125 | M14: -5 | N14: -41.66666667 | O14: 32 | P14: -18 | Q14: 20 | R14: 60.60606061 | S14: 13 | T14: MP4A384 | U14: 0.2668308703 | V14: MP1A384 | W14: 7.784431138
A15: A384 | B15: 7.738095238 | C15: A384 | D15: 54.16666667 | E15: 14 | F15: 42.42424242 | G15: 14 | H15: =(14/28)*100 -> 50 | K15: A384 | L15: 3.75 | M15: -6 | N15: -50 | O15: 31 | P15: -27 | Q15: 19 | R15: 57.57575758 | S15: 14 | T15: MP4B0 | U15: 0.2873563218 | V15: MP1B0 | W15: 8.383233533
A16: B0 | B16: 8.333333333 | C16: B0 | D16: 58.33333333 | E16: 15 | F16: 45.45454545 | G16: 15 | H16: =(15/28)*100 -> 53.57142857 | K16: B0 | L16: 4.375 | M16: -7 | N16: -58.33333333 | O16: 30 | P16: -36 | Q16: 18 | R16: 54.54545455 | S16: 15 | T16: MP4B001 | U16: 0.3078817734 | V16: MP1B001 | W16: 8.982035928
A17: B001 | B17: 8.928571429 | C17: B001 | D17: 62.5 | E17: 16 | F17: 48.48484848 | G17: 16 | H17: =(16/28)*100 -> 57.14285714 | K17: B001 | L17: 5 | M17: -8 | N17: -66.66666667 | O17: 29 | P17: -45 | Q17: 17 | R17: 51.51515152 | S17: 16 | T17: MP4B002 | U17: 0.328407225 | V17: MP1B002 | W17: 9.580838323
A18: B002 | B18: 9.523809524 | C18: B002 | D18: 66.66666667 | E18: 17 | F18: 51.51515152 | G18: 17 | H18: =(17/28)*100 -> 60.71428571 | K18: B002 | L18: 5.625 | M18: -9 | N18: -75 | O18: 28 | P18: -55 | Q18: 16 | R18: 48.48484848 | S18: 17 | T18: MP4B003 | U18: 0.3489326765 | V18: MP1B003 | W18: 10.17964072
A19: B003 | B19: 10.11904762 | C19: B003 | D19: 70.83333333 | E19: 18 | F19: 54.54545455 | G19: 18 | H19: =(18/28)*100 -> 64.28571429 | K19: B003 | L19: 6.25 | M19: -10 | N19: -83.33333333 | O19: 27 | P19: -64 | Q19: 15 | R19: 45.45454545 | S19: 18 | T19: MP4B006 | U19: 0.3694581281 | V19: MP1B006 | W19: 10.77844311
A20: B006 | B20: 10.71428571 | C20: B006 | D20: 75 | E20: 19 | F20: 57.57575758 | G20: 19 | H20: =(19/28)*100 -> 67.85714286 | K20: B006 | L20: 6.875 | M20: -11 | N20: -91.66666667 | O20: 26 | P20: -73 | Q20: 14 | R20: 42.42424242 | S20: 19 | T20: MP4B009 | U20: 0.3899835796 | V20: MP1B009 | W20: 11.37724551
A21: B009 | B21: 11.30952381 | C21: B009 | D21: 79.16666667 | E21: 20 | F21: 60.60606061 | G21: 20 | H21: =(20/28)*100 -> 71.42857143 | K21: B009 | L21: 7.5 | M21: -12 | N21: -100 | O21: 22 | P21: -82 | Q21: 13 | R21: 39.39393939 | S21: 20 | T21: MP4B012 | U21: 0.4105090312 | V21: MP1B012 | W21: 11.9760479
A22: B012 | B22: 11.9047619 | C22: B012 | D22: 83.33333333 | E22: 21 | F22: 63.63636364 | G22: 21 | H22: =(21/28)*100 -> 75 | K22: B012 | L22: 8.125 | O22: 23 | P22: -91 | Q22: 12 | R22: 36.36363636 | S22: 21 | T22: MP4B024 | U22: 0.4310344828 | V22: MP1B024 | W22: 12.5748503
A23: B024 | B23: 12.5 | C23: B024 | D23: 87.5 | E23: 22 | F23: 66.66666667 | G23: 22 | H23: =(22/28)*100 -> 78.57142857 | K23: B024 | L23: 8.75 | O23: 24 | P23: -100 | Q23: 11 | R23: 33.33333333 | S23: 22 | T23: MP4B036 | U23: 0.4515599343 | V23: MP1B036 | W23: 13.17365269
A24: B036 | B24: 13.0952381 | C24: B036 | D24: 91.66666667 | E24: 23 | F24: 69.6969697 | G24: 23 | H24: =(23/28)*100 -> 82.14285714 | K24: B036 | L24: 9.375 | O24: 25 | P24: 0 | Q24: 10 | R24: 30.3030303 | S24: 23 | T24: MP4B048 | U24: 0.4720853859 | V24: MP1B048 | W24: 13.77245509
A25: B048 | B25: 13.69047619 | C25: B048 | D25: 95.83333333 | E25: 24 | F25: 72.72727273 | G25: 24 | H25: =(24/28)*100 -> 85.71428571 | K25: B048 | L25: 10 | Q25: 9 | R25: 27.27272727 | S25: 24 | T25: MP4B096 | U25: =(S24/4872)*100 -> 0.4720853859 | V25: MP1B096 | W25: 14.37125749
A26: B096 | B26: 14.28571429 | C26: B096 | D26: 100 | E26: 25 | F26: 75.75757576 | G26: 25 | H26: =(25/28)*100 -> 89.28571429 | K26: B096 | L26: 10.625 | Q26: 8 | R26: 24.24242424 | S26: 25 | T26: MP4B144 | U26: 0.513136289 | V26: MP1B144 | W26: 14.97005988
A27: B144 | B27: 14.88095238 | E27: 26 | F27: 78.78787879 | G27: 26 | H27: =(26/28)*100 -> 92.85714286 | K27: B144 | L27: 11.25 | Q27: 7 | R27: 21.21212121 | S27: 26 | T27: MP4B192 | U27: 0.5336617406 | V27: MP1B192 | W27: 15.56886228
A28: B192 | B28: 15.47619048 | E28: 27 | F28: 81.81818182 | G28: 27 | H28: =(27/28)*100 -> 96.42857143 | K28: B192 | L28: 11.875 | Q28: 6 | R28: 18.18181818 | S28: 27 | T28: MP4B384 | U28: 0.5541871921 | V28: MP1B384 | W28: 16.16766467
A29: B384 | B29: 16.07142857 | E29: 28 | F29: 84.84848485 | G29: 28 | H29: =(28/28)*100 -> 100 | K29: B384 | L29: 12.5 | Q29: 5 | R29: 15.15151515 | S29: 28 | T29: MP4C0 | U29: 0.5747126437 | V29: MP1C0 | W29: 16.76646707
A30: C0 | B30: 16.66666667 | E30: 29 | F30: 87.87878788 | K30: C0 | L30: 13.125 | Q30: 4 | R30: 12.12121212 | S30: 29 | T30: MP4C001 | U30: 0.5952380952 | V30: MP1C001 | W30: 17.36526946
A31: C001 | B31: 17.26190476 | E31: 30 | F31: 90.90909091 | K31: C001 | L31: 13.75 | Q31: 3 | R31: 9.090909091 | S31: 30 | T31: MP4C002 | U31: 0.6157635468 | V31: MP1C002 | W31: 17.96407186
A32: C002 | B32: 17.85714286 | E32: 31 | F32: 93.93939394 | K32: C002 | L32: 14.375 | Q32: 2 | R32: 6.060606061 | S32: 31 | T32: MP4C003 | U32: 0.6362889984 | V32: MP1C003 | W32: 18.56287425
A33: C003 | B33: 18.45238095 | E33: 32 | F33: 96.96969697 | K33: C003 | L33: 15 | Q33: 1 | R33: 3.03030303 | S33: 32 | T33: MP4C004 | U33: 0.6568144499 | V33: MP1C004 | W33: 19.16167665
A34: C006 | B34: 19.04761905 | E34: 33 | F34: 100 | K34: C006 | L34: 15.625 | Q34: 0 | R34: 0 | S34: 33 | T34: MP4C009 | U34: 0.6773399015 | V34: MP1C009 | W34: 19.76047904
A35: C009 | B35: 19.64285714 | E35: 34 | K35: C009 | L35: 16.25 | Q35: -1 | R35: -3.571428571 | S35: 34 | T35: MP4C012 | U35: 0.697865353 | V35: MP1C012 | W35: 20.35928144
A36: C012 | B36: 20.23809524 | E36: 35 | K36: C012 | L36: 16.875 | Q36: -2 | R36: -7.142857143 | S36: 35 | T36: MP4C024 | U36: 0.7183908046 | V36: MP1C024 | W36: 20.95808383
A37: C024 | B37: 20.83333333 | E37: 36 | K37: C024 | L37: 17.5 | Q37: -3 | R37: -10.71428571 | S37: 36 | T37: MP4C034 | U37: 0.7389162562 | V37: MP1C034 | W37: 21.55688623
A38: C036 | B38: 21.42857143 | E38: 37 | K38: C036 | L38: 18.125 | Q38: -4 | R38: -14.28571429 | S38: 37 | T38: MP4C048 | U38: 0.7594417077 | V38: MP1C048 | W38: 22.15568862
A39: C048 | B39: 22.02380952 | E39: 38 | K39: C048 | L39: 18.75 | Q39: -5 | R39: -17.85714286 | S39: 38 | T39: MP4C094 | U39: 0.7799671593 | V39: MP1C094 | W39: 22.75449102
A40: C096 | B40: 22.61904762 | E40: 39 | K40: C096 | L40: 19.375 | Q40: -6 | R40: -21.42857143 | S40: 39 | T40: MP4C144 | U40: 0.8004926108 | V40: MP1C144 | W40: 23.35329341
A41: C144 | B41: 23.21428571 | E41: 40 | K41: C144 | L41: 20 | Q41: -7 | R41: -25 | S41: 40 | T41: MP4C192 | U41: 0.8210180624 | V41: MP1C192 | W41: 23.95209581
A42: C192 | B42: 23.80952381 | E42: 41 | K42: C192 | L42: 20.625 | Q42: -8 | R42: -28.57142857 | S42: 41 | T42: MP4C384 | U42: 0.841543514 | V42: MP1C384 | W42: 24.5508982
A43: C384 | B43: 24.4047619 | E43: 42 | K43: C384 | L43: 21.25 | Q43: -9 | R43: -32.14285714 | S43: 42 | T43: MP4D0 | U43: 0.8620689655 | V43: MP1D0 | W43: 25.1497006
A44: D0 | B44: 25 | E44: 43 | K44: D0 | L44: 21.875 | Q44: -10 | R44: -35.71428571 | S44: 43 | T44: MP4D001 | U44: 0.8825944171 | V44: MP1D001 | W44: 25.74850299
A45: D001 | B45: 25.5952381 | E45: 44 | K45: D001 | L45: 22.5 | Q45: -11 | R45: -39.28571429 | S45: 44 | T45: MP4D002 | U45: 0.9031198686 | V45: MP1D002 | W45: 26.34730539
A46: D002 | B46: 26.19047619 | E46: 45 | K46: D002 | L46: 23.125 | Q46: -12 | R46: -42.85714286 | S46: 45 | T46: MP4D003 | U46: 0.9236453202 | V46: MP1D003 | W46: 26.94610778
A47: D003 | B47: 26.78571429 | E47: 46 | K47: D003 | L47: 23.75 | Q47: -13 | R47: -46.42857143 | S47: 46 | T47: MP4D006 | U47: 0.9441707718 | V47: MP1D006 | W47: 27.54491018
A48: D006 | B48: 27.38095238 | E48: 47 | K48: D006 | L48: 24.375 | Q48: -14 | R48: -50 | S48: 47 | T48: MP4D009 | U48: 0.9646962233 | V48: MP1D009 | W48: 28.14371257
A49: D009 | B49: 27.97619048 | E49: 48 | K49: D009 | L49: 25 | Q49: -15 | R49: -53.57142857 | S49: 48 | T49: MP4D012 | U49: 0.9852216749 | V49: MP1D012 | W49: 28.74251497
A50: D012 | B50: 28.57142857 | E50: 49 | K50: D012 | L50: 25.625 | Q50: -16 | R50: -57.14285714 | S50: 49 | T50: MP4D024 | U50: 1.005747126 | V50: MP1D024 | W50: 29.34131737
A51: D024 | B51: 29.16666667 | E51: 50 | K51: D024 | L51: 26.25 | Q51: -17 | R51: -60.71428571 | S51: 50 | T51: MP4D036 | U51: 1.026272578 | V51: MP1D036 | W51: 29.94011976
A52: D036 | B52: 29.76190476 | E52: 51 | K52: D036 | L52: 26.875 | Q52: -18 | R52: -64.28571429 | S52: 51 | T52: MP4D048 | U52: 1.04679803 | V52: MP1D048 | W52: 30.53892216
A53: D048 | B53: 30.35714286 | E53: 52 | K53: D048 | L53: 27.5 | Q53: -19 | R53: -67.85714286 | S53: 52 | T53: MP4D096 | U53: 1.067323481 | V53: MP1D096 | W53: 31.13772455
A54: D096 | B54: 30.95238095 | E54: 53 | K54: D096 | L54: 28.125 | Q54: -20 | R54: -71.42857143 | S54: 53 | T54: MP4D144 | U54: 1.087848933 | V54: MP1D144 | W54: 31.73652695
A55: D144 | B55: 31.54761905 | E55: 54 | K55: D144 | L55: 28.75 | Q55: -21 | R55: -75 | S55: 54 | T55: MP4D192 | U55: 1.108374384 | V55: MP1D192 | W55: 32.33532934
A56: D192 | B56: 32.14285714 | E56: 55 | K56: D192 | L56: 29.375 | Q56: -22 | R56: -78.57142857 | S56: 55 | T56: MP4D384 | U56: 1.128899836 | V56: MP1D384 | W56: 32.93413174
A57: D384 | B57: 32.73809524 | E57: 56 | K57: D384 | L57: 30 | Q57: -23 | R57: -82.14285714 | S57: 56 | T57: MP4E0 | U57: =(S57/4872)*100 -> 1.149425287 | V57: MP1E0 | W57: 33.53293413
A58: E0 | B58: 33.33333333 | E58: 57 | K58: E0 | L58: 30.625 | Q58: -24 | R58: -85.71428571 | S58: 57 | T58: MP4E001 | U58: =(S58/4872)*100 -> 1.169950739 | V58: MP1E001 | W58: 34.13173653
A59: E001 | B59: 33.92857143 | E59: 58 | K59: E001 | L59: 31.25 | Q59: -25 | R59: -89.28571429 | S59: 58 | T59: MP4E002 | U59: 1.19047619 | V59: MP1E002 | W59: 34.73053892
A60: E002 | B60: 34.52380952 | E60: 59 | K60: E002 | L60: 31.875 | Q60: -26 | R60: -92.85714286 | S60: 59 | T60: MP4E003 | U60: 1.211001642 | V60: MP1E003 | W60: 35.32934132
A61: E003 | B61: 35.11904762 | E61: 60 | K61: E003 | L61: 32.5 | Q61: -27 | R61: -96.42857143 | S61: 60 | T61: MP4E006 | U61: 1.231527094 | V61: MP1E006 | W61: 35.92814371
A62: E006 | B62: 35.71428571 | E62: 61 | K62: E006 | L62: 33.125 | Q62: -28 | R62: -100 | S62: 61 | T62: MP4E009 | U62: 1.252052545 | V62: MP1E009 | W62: 36.52694611
A63: E009 | B63: 36.30952381 | E63: 62 | K63: E009 | L63: 33.75 | S63: 62 | T63: MP4E012 | U63: 1.272577997 | V63: MP1E012 | W63: 37.1257485
A64: E012 | B64: 36.9047619 | E64: 63 | K64: E012 | L64: 34.375 | S64: 63 | T64: MP4E024 | U64: 1.293103448 | V64: MP1E024 | W64: 37.7245509
A65: E024 | B65: 37.5 | E65: 64 | K65: E024 | L65: 35 | S65: 64 | T65: MP4E036 | U65: 1.3136289 | V65: MP1E036 | W65: 38.32335329
A66: E036 | B66: 38.0952381 | E66: 65 | K66: E036 | L66: 35.625 | S66: 65 | T66: MP4E048 | U66: 1.334154351 | V66: MP1E048 | W66: =(S66/167)*100 -> 38.92215569
A67: E048 | B67: =(E66/168)*100 -> 38.69047619 | E67: 66 | K67: E048 | L67: 36.25 | S67: 66 | T67: MP4E096 | U67: =(S67/4872)*100 -> 1.354679803 | V67: MP1E096 | W67: 39.52095808
A68: E096 | B68: 39.28571429 | E68: 67 | K68: E096 | L68: 36.875 | S68: 67 | T68: MP4E144 | U68: 1.375205255 | V68: MP1E144 | W68: 40.11976048
A69: E144 | B69: 39.88095238 | E69: 68 | K69: E144 | L69: 37.5 | S69: 68 | T69: MP4E192 | U69: 1.395730706 | V69: MP1E192 | W69: 40.71856287
A70: E192 | B70: 40.47619048 | E70: 69 | K70: E192 | L70: 38.125 | S70: 69 | T70: MP4E384 | U70: 1.416256158 | V70: MP1E384 | W70: 41.31736527
A71: E384 | B71: 41.07142857 | E71: 70 | K71: E384 | L71: 38.75 | S71: 70 | T71: MP4F0 | U71: =(S70/4872)*100 -> 1.416256158 | V71: MP1F0 | W71: 41.91616766
A72: F0 | B72: 41.66666667 | E72: 71 | K72: F0 | L72: 39.375 | S72: 71 | T72: MP4F001 | U72: 1.457307061 | V72: MP1F001 | W72: 42.51497006
A73: F001 | B73: 42.26190476 | E73: 72 | K73: F001 | L73: 40 | S73: 72 | T73: MP4F002 | U73: 1.477832512 | V73: MP1F002 | W73: 43.11377246
A74: F002 | B74: 42.85714286 | E74: 73 | K74: F002 | L74: 40.625 | S74: 73 | T74: MP4F003 | U74: 1.498357964 | V74: MP1F003 | W74: 43.71257485
A75: F003 | B75: 43.45238095 | E75: 74 | K75: F003 | L75: 41.25 | S75: 74 | T75: MP4F006 | U75: 1.518883415 | V75: MP1F006 | W75: 44.31137725
A76: F006 | B76: 44.04761905 | E76: 75 | K76: F006 | L76: 41.875 | S76: 75 | T76: MP4F009 | U76: 1.539408867 | V76: MP1F009 | W76: 44.91017964
A77: F009 | B77: 44.64285714 | E77: 76 | K77: F009 | L77: 42.5 | S77: 76 | T77: MP4F012 | U77: 1.559934319 | V77: MP1F012 | W77: 45.50898204
A78: F012 | B78: 45.23809524 | E78: 77 | K78: F012 | L78: 43.125 | S78: 77 | T78: MP4F024 | U78: 1.58045977 | V78: MP1F024 | W78: 46.10778443
A79: F024 | B79: 45.83333333 | E79: 78 | K79: F024 | L79: 43.75 | S79: 78 | T79: MP4F036 | U79: 1.600985222 | V79: MP1F036 | W79: 46.70658683
A80: F036 | B80: 46.42857143 | E80: 79 | K80: F036 | L80: 44.375 | S80: 79 | T80: MP4F048 | U80: 1.621510673 | V80: MP1F048 | W80: 47.30538922
A81: F048 | B81: 47.02380952 | E81: 80 | K81: F048 | L81: 45 | S81: 80 | T81: MP4F096 | U81: =(S80/4872)*100 -> 1.621510673 | V81: MP1F096 | W81: 47.90419162
A82: F096 | B82: 47.61904762 | E82: 81 | K82: F096 | L82: 45.625 | S82: 81 | T82: MP4F144 | U82: 1.662561576 | V82: MP1F144 | W82: 48.50299401
A83: F144 | B83: 48.21428571 | E83: 82 | K83: F144 | L83: 46.25 | S83: 82 | T83: MP4F192 | U83: 1.683087028 | V83: MP1F192 | W83: 49.10179641
A84: F192 | B84: 48.80952381 | E84: 83 | K84: F192 | L84: 46.875 | S84: 83 | T84: MP4F384 | U84: 1.703612479 | V84: MP1F384 | W84: 49.7005988
A85: F384 | B85: 49.4047619 | E85: 84 | K85: F384 | L85: 47.5 | S85: 84 | T85: MP4G0 | U85: 1.724137931 | V85: MP1G0 | W85: 50.2994012
A86: G0 | B86: 50 | E86: 85 | K86: G0 | L86: 48.125 | S86: 85 | T86: MP4G001 | U86: 1.744663383 | V86: MP1G001 | W86: 50.89820359
A87: G001 | B87: 50.5952381 | E87: 86 | K87: G001 | L87: 48.75 | S87: 86 | T87: MP4G002 | U87: 1.765188834 | V87: MP1G002 | W87: 51.49700599
A88: G002 | B88: 51.19047619 | E88: 87 | K88: G002 | L88: 49.375 | S88: 87 | T88: MP4G003 | U88: 1.785714286 | V88: MP1G003 | W88: 52.09580838
A89: G003 | B89: 51.78571429 | E89: 88 | K89: G003 | L89: 50 | S89: 88 | T89: MP4G004 | U89: 1.806239737 | V89: MP1G004 | W89: 52.69461078
A90: G006 | B90: 52.38095238 | E90: 89 | K90: G006 | L90: 50.625 | S90: 89 | T90: MP4G009 | U90: 1.826765189 | V90: MP1G009 | W90: 53.29341317
A91: G009 | B91: 52.97619048 | E91: 90 | K91: G009 | L91: 51.25 | S91: 90 | T91: MP4G012 | U91: 1.84729064 | V91: MP1G012 | W91: 53.89221557
A92: G012 | B92: 53.57142857 | E92: 91 | K92: G012 | L92: 51.875 | S92: 91 | T92: MP4G024 | U92: 1.867816092 | V92: MP1G024 | W92: 54.49101796
A93: G024 | B93: 54.16666667 | E93: 92 | K93: G024 | L93: 52.5 | S93: 92 | T93: MP4G034 | U93: 1.888341544 | V93: MP1G034 | W93: 55.08982036
A94: G036 | B94: 54.76190476 | E94: 93 | K94: G036 | L94: 53.125 | S94: 93 | T94: MP4G048 | U94: 1.908866995 | V94: MP1G048 | W94: 55.68862275
A95: G048 | B95: 55.35714286 | E95: 94 | K95: G048 | L95: 53.75 | S95: 94 | T95: MP4G094 | U95: 1.929392447 | V95: MP1G094 | W95: 56.28742515
A96: G096 | B96: 55.95238095 | E96: 95 | K96: G096 | L96: 54.375 | S96: 95 | T96: MP4G144 | U96: 1.949917898 | V96: MP1G144 | W96: 56.88622754
A97: G144 | B97: 56.54761905 | E97: 96 | K97: G144 | L97: 55 | S97: 96 | T97: MP4G192 | U97: 1.97044335 | V97: MP1G192 | W97: 57.48502994
A98: G192 | B98: 57.14285714 | E98: 97 | K98: G192 | L98: 55.625 | S98: 97 | T98: MP4G384 | U98: 1.990968801 | V98: MP1G384 | W98: 58.08383234
A99: G384 | B99: 57.73809524 | E99: 98 | K99: G384 | L99: 56.25 | S99: 98 | T99: MP4H0 | U99: 2.011494253 | V99: MP1H0 | W99: 58.68263473
A100: H0 | B100: 58.33333333 | E100: 99 | K100: H0 | L100: 56.875 | S100: 99 | T100: MP4H001 | U100: 2.032019704 | V100: MP1H001 | W100: 59.28143713
A101: H001 | B101: 58.92857143 | E101: 100 | K101: H001 | L101: 57.5 | S101: 100 | T101: MP4H002 | U101: 2.052545156 | V101: MP1H002 | W101: 59.88023952
A102: H002 | B102: 59.52380952 | E102: 101 | K102: H002 | L102: 58.125 | S102: 101 | T102: MP4H003 | U102: 2.073070608 | V102: MP1H003 | W102: 60.47904192
A103: H003 | B103: 60.11904762 | E103: 102 | K103: H003 | L103: 58.75 | S103: 102 | T103: MP4H006 | U103: 2.093596059 | V103: MP1H006 | W103: 61.07784431
A104: H006 | B104: 60.71428571 | E104: 103 | K104: H006 | L104: 59.375 | S104: 103 | T104: MP4H009 | U104: 2.114121511 | V104: MP1H009 | W104: 61.67664671
A105: H009 | B105: 61.30952381 | E105: 104 | K105: H009 | L105: 60 | S105: 104 | T105: MP4H012 | U105: 2.134646962 | V105: MP1H012 | W105: 62.2754491
A106: H012 | B106: 61.9047619 | E106: 105 | K106: H012 | L106: 60.625 | S106: 105 | T106: MP4H024 | U106: 2.155172414 | V106: MP1H024 | W106: 62.8742515
A107: H024 | B107: 62.5 | E107: 106 | K107: H024 | L107: 61.25 | S107: 106 | T107: MP4H036 | U107: 2.175697865 | V107: MP1H036 | W107: 63.47305389
A108: H036 | B108: 63.0952381 | E108: 107 | K108: H036 | L108: 61.875 | S108: 107 | T108: MP4H048 | U108: 2.196223317 | V108: MP1H048 | W108: 64.07185629
A109: H048 | B109: 63.69047619 | E109: 108 | K109: H048 | L109: 62.5 | S109: 108 | T109: MP4H096 | U109: 2.216748768 | V109: MP1H096 | W109: 64.67065868
A110: H096 | B110: 64.28571429 | E110: 109 | K110: H096 | L110: 63.125 | S110: 109 | T110: MP4H144 | U110: 2.23727422 | V110: MP1H144 | W110: 65.26946108
A111: H144 | B111: 64.88095238 | E111: 110 | K111: H144 | L111: 63.75 | S111: 110 | T111: MP4H192 | U111: 2.257799672 | V111: MP1H192 | W111: 65.86826347
A112: H192 | B112: 65.47619048 | E112: 111 | K112: H192 | L112: 64.375 | S112: 111 | T112: MP4H384 | U112: 2.278325123 | V112: MP1H384 | W112: 66.46706587
A113: H384 | B113: 66.07142857 | E113: 112 | K113: H384 | L113: 65 | S113: 112 | T113: MP4I0 | U113: 2.298850575 | V113: MP1I0 | W113: 67.06586826
A114: I0 | B114: 66.66666667 | E114: 113 | K114: I0 | L114: 65.625 | S114: 113 | T114: MP4I001 | U114: 2.319376026 | V114: MP1I001 | W114: 67.66467066
A115: I001 | B115: 67.26190476 | E115: 114 | K115: I001 | L115: 66.25 | S115: 114 | T115: MP4I002 | U115: 2.339901478 | V115: MP1I002 | W115: 68.26347305
A116: I002 | B116: 67.85714286 | E116: 115 | K116: I002 | L116: 66.875 | S116: 115 | T116: MP4I003 | U116: 2.360426929 | V116: MP1I003 | W116: 68.86227545
A117: I003 | B117: 68.45238095 | E117: 116 | K117: I003 | L117: 67.5 | S117: 116 | T117: MP4I006 | U117: 2.380952381 | V117: MP1I006 | W117: 69.46107784
A118: I006 | B118: 69.04761905 | E118: 117 | K118: I006 | L118: 68.125 | S118: 117 | T118: MP4I009 | U118: 2.401477833 | V118: MP1I009 | W118: 70.05988024
A119: I009 | B119: 69.64285714 | E119: 118 | K119: I009 | L119: 68.75 | S119: 118 | T119: MP4I012 | U119: 2.422003284 | V119: MP1I012 | W119: 70.65868263
A120: I012 | B120: 70.23809524 | E120: 119 | K120: I012 | L120: 69.375 | S120: 119 | T120: MP4I024 | U120: 2.442528736 | V120: MP1I024 | W120: 71.25748503
A121: I024 | B121: 70.83333333 | E121: 120 | K121: I024 | L121: 70 | S121: 120 | T121: MP4I036 | U121: 2.463054187 | V121: MP1I036 | W121: 71.85628743
A122: I036 | B122: 71.42857143 | E122: 121 | K122: I036 | L122: 70.625 | S122: 121 | T122: MP4I048 | U122: 2.483579639 | V122: MP1I048 | W122: 72.45508982
A123: I048 | B123: 72.02380952 | E123: 122 | K123: I048 | L123: 71.25 | S123: 122 | T123: MP4I096 | U123: 2.50410509 | V123: MP1I096 | W123: 73.05389222
A124: I096 | B124: 72.61904762 | E124: 123 | K124: I096 | L124: 71.875 | S124: 123 | T124: MP4I144 | U124: 2.524630542 | V124: MP1I144 | W124: 73.65269461
A125: I144 | B125: 73.21428571 | E125: 124 | K125: I144 | L125: 72.5 | S125: 124 | T125: MP4I192 | U125: 2.545155993 | V125: MP1I192 | W125: 74.25149701
A126: I192 | B126: 73.80952381 | E126: 125 | K126: I192 | L126: 73.125 | S126: 125 | T126: MP4I384 | U126: 2.565681445 | V126: MP1I384 | W126: 74.8502994
A127: I384 | B127: 74.4047619 | E127: 126 | K127: I384 | L127: 73.75 | S127: 126 | T127: MP4J0 | U127: 2.586206897 | V127: MP1J0 | W127: 75.4491018
A128: J0 | B128: 75 | E128: 127 | K128: J0 | L128: 74.375 | S128: 127 | T128: MP4J001 | U128: 2.606732348 | V128: MP1J001 | W128: 76.04790419
A129: J001 | B129: 75.5952381 | E129: 128 | K129: J001 | L129: 75 | S129: 128 | T129: MP4J002 | U129: 2.6272578 | V129: MP1J002 | W129: 76.64670659
A130: J002 | B130: 76.19047619 | E130: 129 | K130: J002 | L130: 75.625 | S130: 129 | T130: MP4J003 | U130: 2.647783251 | V130: MP1J003 | W130: =(S130/167)*100 -> 77.24550898
A131: J003 | B131: =(E130/168)*100 -> 76.78571429 | E131: 130 | K131: J003 | L131: 76.25 | S131: 130 | T131: MP4J006 | U131: =(S131/4872)*100 -> 2.668308703 | V131: MP1J006 | W131: 77.84431138
A132: J006 | B132: 77.38095238 | E132: 131 | K132: J006 | L132: 76.875 | S132: 131 | T132: MP4J009 | U132: 2.688834154 | V132: MP1J009 | W132: 78.44311377
A133: J009 | B133: 77.97619048 | E133: 132 | K133: J009 | L133: 77.5 | S133: 132 | T133: MP4J012 | U133: 2.709359606 | V133: MP1J012 | W133: 79.04191617
A134: J012 | B134: 78.57142857 | E134: 133 | K134: J012 | L134: 78.125 | S134: 133 | T134: MP4J024 | U134: 2.729885057 | V134: MP1J024 | W134: 79.64071856
A135: J024 | B135: 79.16666667 | E135: 134 | K135: J024 | L135: 78.75 | S135: 134 | T135: MP4J036 | U135: 2.750410509 | V135: MP1J036 | W135: 80.23952096
A136: J036 | B136: 79.76190476 | E136: 135 | K136: J036 | L136: 79.375 | S136: 135 | T136: MP4J048 | U136: 2.770935961 | V136: MP1J048 | W136: 80.83832335
A137: J048 | B137: 80.35714286 | E137: 136 | K137: J048 | L137: 80 | S137: 136 | T137: MP4J096 | U137: 2.791461412 | V137: MP1J096 | W137: 81.43712575
A138: J096 | B138: 80.95238095 | E138: 137 | K138: J096 | L138: 80.625 | S138: 137 | T138: MP4J144 | U138: 2.811986864 | V138: MP1J144 | W138: 82.03592814
A139: J144 | B139: 81.54761905 | E139: 138 | K139: J144 | L139: 81.25 | S139: 138 | T139: MP4J192 | U139: 2.832512315 | V139: MP1J192 | W139: 82.63473054
A140: J192 | B140: 82.14285714 | E140: 139 | K140: J192 | L140: 81.875 | S140: 139 | T140: MP4J384 | U140: 2.853037767 | V140: MP1J384 | W140: 83.23353293
A141: J384 | B141: 82.73809524 | E141: 140 | K141: J384 | L141: 82.5 | S141: 140 | T141: MP4K0 | U141: 2.873563218 | V141: MP1K0 | W141: 83.83233533
A142: K0 | B142: 83.33333333 | E142: 141 | K142: K0 | L142: 83.125 | S142: 141 | T142: MP4K001 | U142: 2.89408867 | V142: MP1K001 | W142: 84.43113772
A143: K001 | B143: 83.92857143 | E143: 142 | K143: K001 | L143: 83.75 | S143: 142 | T143: MP4K002 | U143: 2.914614122 | V143: MP1K002 | W143: 85.02994012
A144: K002 | B144: 84.52380952 | E144: 143 | K144: K002 | L144: 84.375 | S144: 143 | T144: MP4K003 | U144: 2.935139573 | V144: MP1K003 | W144: 85.62874251
A145: K003 | B145: 85.11904762 | E145: 144 | K145: K003 | L145: 85 | S145: 144 | T145: MP4K006 | U145: 2.955665025 | V145: MP1K006 | W145: 86.22754491
A146: K006 | B146: 85.71428571 | E146: 145 | K146: K006 | L146: 85.625 | S146: 145 | T146: MP4K009 | U146: 2.976190476 | V146: MP1K009 | W146: 86.82634731
A147: K009 | B147: 86.30952381 | E147: 146 | K147: K009 | L147: 86.25 | S147: 146 | T147: MP4K012 | U147: 2.996715928 | V147: MP1K012 | W147: 87.4251497
A148: K012 | B148: 86.9047619 | E148: 147 | K148: K012 | L148: 86.875 | S148: 147 | T148: MP4K024 | U148: 3.017241379 | V148: MP1K024 | W148: 88.0239521
A149: K024 | B149: 87.5 | E149: 148 | K149: K024 | L149: 87.5 | S149: 148 | T149: MP4K036 | U149: 3.037766831 | V149: MP1K036 | W149: 88.62275449
A150: K036 | B150: 88.0952381 | E150: 149 | K150: K036 | L150: 88.125 | S150: 149 | T150: MP4K048 | U150: 3.058292282 | V150: MP1K048 | W150: 89.22155689
A151: K048 | B151: 88.69047619 | E151: 150 | K151: K048 | L151: 88.75 | S151: 150 | T151: MP4K096 | U151: 3.078817734 | V151: MP1K096 | W151: 89.82035928
A152: K096 | B152: 89.28571429 | E152: 151 | K152: K096 | L152: 89.375 | S152: 151 | T152: MP4K144 | U152: 3.099343186 | V152: MP1K144 | W152: 90.41916168
A153: K144 | B153: 89.88095238 | E153: 152 | K153: K144 | L153: 90 | S153: 152 | T153: MP4K192 | U153: 3.119868637 | V153: MP1K192 | W153: 91.01796407
A154: K192 | B154: 90.47619048 | E154: 153 | K154: K192 | L154: 90.625 | S154: 153 | T154: MP4K384 | U154: 3.140394089 | V154: MP1K384 | W154: 91.61676647
A155: K384 | B155: 91.07142857 | E155: 154 | K155: K384 | L155: 91.25 | S155: 154 | T155: MP4L0 | U155: 3.16091954 | V155: MP1L0 | W155: 92.21556886
A156: L0 | B156: 91.66666667 | E156: 155 | K156: L0 | L156: 91.875 | S156: 155 | T156: MP4L001 | U156: 3.181444992 | V156: MP1L001 | W156: 92.81437126
A157: L001 | B157: 92.26190476 | E157: 156 | K157: L001 | L157: 92.5 | S157: 156 | T157: MP4L002 | U157: 3.201970443 | V157: MP1L002 | W157: 93.41317365
A158: L002 | B158: 92.85714286 | E158: 157 | K158: L002 | L158: 93.125 | S158: 157 | T158: MP4L003 | U158: 3.222495895 | V158: MP1L003 | W158: 94.01197605
A159: L003 | B159: 93.45238095 | E159: 158 | K159: L003 | L159: 93.75 | S159: 158 | T159: MP4L006 | U159: 3.243021346 | V159: MP1L006 | W159: 94.61077844
A160: L006 | B160: 94.04761905 | E160: 159 | K160: L006 | L160: 94.375 | S160: 159 | T160: MP4L009 | U160: 3.263546798 | V160: MP1L009 | W160: 95.20958084
A161: L009 | B161: 94.64285714 | E161: 160 | K161: L009 | L161: 95 | S161: 160 | T161: MP4L012 | U161: 3.28407225 | V161: MP1L012 | W161: 95.80838323
A162: L012 | B162: 95.23809524 | E162: 161 | K162: L012 | L162: 95.625 | S162: 161 | T162: MP4L024 | U162: 3.304597701 | V162: MP1L024 | W162: 96.40718563
A163: L024 | B163: 95.83333333 | E163: 162 | K163: L024 | L163: 96.25 | S163: 162 | T163: MP4L036 | U163: 3.325123153 | V163: MP1L036 | W163: 97.00598802
A164: L036 | B164: 96.42857143 | E164: 163 | K164: L036 | L164: 96.875 | S164: 163 | T164: MP4L048 | U164: 3.345648604 | V164: MP1L048 | W164: 97.60479042
A165: L048 | B165: 97.02380952 | E165: 164 | K165: L048 | L165: 97.5 | S165: 164 | T165: MP4L096 | U165: 3.366174056 | V165: MP1L096 | W165: 98.20359281
A166: L096 | B166: 97.61904762 | E166: 165 | K166: L096 | L166: 98.125 | S166: 165 | T166: MP4L144 | U166: 3.386699507 | V166: MP1L144 | W166: 98.80239521
A167: L144 | B167: 98.21428571 | E167: 166 | K167: L144 | L167: 98.75 | S167: 166 | T167: MP4L192 | U167: 3.407224959 | V167: MP1L192 | W167: 99.4011976
A168: L192 | B168: 98.80952381 | E168: 167 | K168: L192 | L168: 99.375 | S168: 167 | T168: MP4L384 | U168: 3.427750411 | V168: MP1L384 | W168: 100
A169: L384 | B169: 99.4047619 | E169: 168 | K169: L384 | L169: 100 | S169: 168 | T169: MP5A0 | U169: 3.448275862
S170: 169 | T170: MP5A001 | U170: 3.468801314
S171: 170 | T171: MP5A002 | U171: 3.489326765
S172: 171 | T172: MP5A003 | U172: 3.509852217
S173: 172 | T173: MP5A006 | U173: 3.530377668
S174: 173 | T174: MP5A009 | U174: 3.55090312
S175: 174 | T175: MP5A012 | U175: 3.571428571
S176: 175 | T176: MP5A024 | U176: 3.591954023
S177: 176 | T177: MP5A036 | U177: 3.612479475
S178: 177 | T178: MP5A048 | U178: 3.633004926
S179: 178 | T179: MP5A096 | U179: 3.653530378
S180: 179 | T180: MP5A144 | U180: 3.674055829
S181: 180 | T181: MP5A192 | U181: 3.694581281
S182: 181 | T182: MP5A384 | U182: 3.715106732
S183: 182 | T183: MP5B0 | U183: 3.735632184
S184: 183 | T184: MP5B001 | U184: 3.756157635
S185: 184 | T185: MP5B002 | U185: 3.776683087
S186: 185 | T186: MP5B003 | U186: 3.797208539
S187: 186 | T187: MP5B006 | U187: 3.81773399
S188: 187 | T188: MP5B009 | U188: 3.838259442
S189: 188 | T189: MP5B012 | U189: 3.858784893
S190: 189 | T190: MP5B024 | U190: 3.879310345
S191: 190 | T191: MP5B036 | U191: 3.899835796
S192: 191 | T192: MP5B048 | U192: 3.920361248
S193: 192 | T193: MP5B096 | U193: 3.9408867
S194: 193 | T194: MP5B144 | U194: 3.961412151
S195: 194 | T195: MP5B192 | U195: =(S195/4872)*100 -> 3.981937603
S196: 195 | T196: MP5B384 | U196: 4.002463054
S197: 196 | T197: MP5C0 | U197: 4.022988506
S198: 197 | T198: MP5C001 | U198: 4.043513957
S199: 198 | T199: MP5C002 | U199: 4.064039409
S200: 199 | T200: MP5C003 | U200: 4.08456486
... 4300 more rows

Sheet List5
A1: V
A2: g
A3: H
A4: j
A5: k
A6: p
A7: B
A8: O
A9: I
A10: a
A11: b
A12: P
A13: C
A14: d
A15: t
A16: F
A17: M
A18: Mb
A19: M
A20: M
A21: Mg
A22: o
A23: h
A24: k
A25: l
A26: v
A27: r
A28: z
A29: O(p)
A30: I(p)
A31: a(p)
A32: b(p)
A33: P(p)

Sheet List6

Sheet List7

Sheet List8

Sheet List9

Sheet List10

Sheet List11

Sheet List12

Sheet List13

Sheet List14

Sheet List15

Sheet List16
